Workbook

Sheet 第10-1表_千曲川上流
A1: 第10-1表 市町村別・公益的機能別施業森林等区分別ゾーニング別・資源表
R2: （単位 面積：ha 蓄積：m3）
A3: 地域振興局 | B3: 市町村名 | C3: 区 分 | E3: 公益的機能別施業森林等区分別
E4: 水かん | G4: 山災/土壌 | I4: 快適環境 | K4: 保健 | M4: 文化 | O4: 独自 | Q4: 木材 | S4: 総数
E5: 面積 | F5: 蓄積 | G5: 面積 | H5: 蓄積 | I5: 面積 | J5: 蓄積 | K5: 面積 | L5: 蓄積 | M5: 面積 | N5: 蓄積 | O5: 面積 | P5: 蓄積 | Q5: 面積 | R5: 蓄積 | S5: 面積 | T5: 蓄積
A6: 佐久 | B6: 小諸市 | C6: 総 数 | E6: 938.08 | F6: 238535 | G6: 65.06 | H6: 15588 | I6: 0 | J6: 0 | K6: 0 | L6: 0 | M6: 0 | N6: 0 | O6: 0 | P6: 0 | Q6: 881.83 | R6: 222068 | S6: =SUM(S7,S10) -> 1884.97 | T6: =SUM(T7,T10) -> 476191
C7: 立木地 | D7: 総 数 | E7: 931.24 | F7: 238485 | G7: 63.28 | H7: 15588 | I7: 0 | J7: 0 | K7: 0 | L7: 0 | M7: 0 | N7: 0 | O7: 0 | P7: 0 | Q7: 874.37 | R7: 222018 | S7: =SUM(S8:S9) -> 1868.89 | T7: =SUM(T8:T9) -> 476091
D8: 人工林 | E8: 677.33 | F8: 191600 | G8: 61.21 | H8: 15132 | J8: 0 | L8: 0 | N8: 0 | P8: 0 | Q8: 643.06 | R8: 178960 | S8: =E8+G8+I8+K8+M8+O8+Q8 -> 1381.6 | T8: 385692
D9: 天然林 | E9: 253.91 | F9: 46885 | G9: 2.07 | H9: 456 | J9: 0 | L9: 0 | N9: 0 | P9: 0 | Q9: 231.31 | R9: 43058 | S9: 487.29 | T9: 90399
C10: その他 | E10: 6.84 | F10: 50 | G10: 1.78 | H10: 0 | J10: 0 | L10: 0 | N10: 0 | P10: 0 | Q10: 7.46 | R10: 50 | S10: 16.08 | T10: 100
B11: 佐久市 | C11: 総 数 | E11: 12826.47 | F11: 3010573 | G11: 258.21 | H11: 68558 | I11: 0 | J11: 0 | K11: 0 | L11: 0 | M11: 0 | N11: 0 | O11: 0 | P11: 0 | Q11: 7447.53 | R11: 1839834 | S11: =SUM(S12,S15) -> 20532.21 | T11: =SUM(T12,T15) -> 4918965
C12: 立木地 | D12: 総 数 | E12: 12581.26 | F12: 3010268 | G12: 252.21 | H12: 68558 | I12: 0 | J12: 0 | K12: 0 | L12: 0 | M12: 0 | N12: 0 | O12: 0 | P12: 0 | Q12: 7250.65 | R12: 1839797 | S12: =SUM(S13:S14) -> 20084.12 | T12: =SUM(T13:T14) -> 4918623
D13: 人工林 | E13: 7786.43 | F13: 2381220 | G13: 191.77 | H13: 61244 | J13: 0 | L13: 0 | N13: 0 | P13: 0 | Q13: 4809.46 | R13: 1486557 | S13: =E13+G13+I13+K13+M13+O13+Q13 -> 12787.66 | T13: 3929021
D14: 天然林 | E14: 4794.83 | F14: 629048 | G14: 60.44 | H14: 7314 | J14: 0 | L14: 0 | N14: 0 | P14: 0 | Q14: 2441.19 | R14: 353240 | S14: 7296.46 | T14: 989602
C15: その他 | E15: 245.21 | F15: 305 | G15: 6 | H15: 0 | J15: 0 | L15: 0 | N15: 0 | P15: 0 | Q15: 196.88 | R15: 37 | S15: 448.09 | T15: 342
B16: 小海町 | C16: 総 数 | E16: 5006.46 | F16: 1330645 | G16: 1912.02 | H16: 512723 | I16: 0 | J16: 0 | K16: 87.36 | L16: 21168 | M16: 0 | N16: 0 | O16: 0 | P16: 0 | Q16: 6540.75 | R16: 1750021 | S16: =SUM(S17,S20) -> 13546.59 | T16: =SUM(T17,T20) -> 3614557
C17: 立木地 | D17: 総 数 | E17: 4907.7 | F17: 1330594 | G17: 1895.98 | H17: 512723 | I17: 0 | J17: 0 | K17: 85.68 | L17: 21168 | M17: 0 | N17: 0 | O17: 0 | P17: 0 | Q17: 6429.3 | R17: 1749970 | S17: =SUM(S18:S19) -> 13318.66 | T17: =SUM(T18:T19) -> 3614455
D18: 人工林 | E18: 3549.83 | F18: 1161302 | G18: 1346.75 | H18: 449452 | J18: 0 | K18: 50.54 | L18: 16257 | N18: 0 | P18: 0 | Q18: 4698.33 | R18: 1542420 | S18: =E18+G18+I18+K18+M18+O18+Q18 -> 9645.45 | T18: 3169431
D19: 天然林 | E19: 1357.87 | F19: 169292 | G19: 549.23 | H19: 63271 | J19: 0 | K19: 35.14 | L19: 4911 | N19: 0 | P19: 0 | Q19: 1730.97 | R19: 207550 | S19: 3673.21 | T19: 445024
C20: その他 | E20: 98.76 | F20: 51 | G20: 16.04 | H20: 0 | J20: 0 | K20: 1.68 | L20: 0 | N20: 0 | P20: 0 | Q20: 111.45 | R20: 51 | S20: 227.93 | T20: 102
B21: 佐久穂町 | C21: 総 数 | E21: 8290.11 | F21: 2070422 | G21: 688.31 | H21: 156601 | I21: 0 | J21: 0 | K21: 238.1 | L21: 32450 | M21: 0 | N21: 0 | O21: 0 | P21: 0 | Q21: 3442.37 | R21: 854533 | S21: =SUM(S22,S25) -> 12658.89 | T21: =SUM(T22,T25) -> 3114006
C22: 立木地 | D22: 総 数 | E22: 8161.72 | F22: 2070346 | G22: 669.14 | H22: 156525 | I22: 0 | J22: 0 | K22: 237.81 | L22: 32450 | M22: 0 | N22: 0 | O22: 0 | P22: 0 | Q22: 3354.04 | R22: 854457 | S22: =SUM(S23:S24) -> 12422.71 | T22: =SUM(T23:T24) -> 3113778
D23: 人工林 | E23: 4698.45 | F23: 1544308 | G23: 411.13 | H23: 123928 | J23: 0 | K23: 23.36 | L23: 7626 | N23: 0 | P23: 0 | Q23: 2280.46 | R23: 727190 | S23: =E23+G23+I23+K23+M23+O23+Q23 -> 7413.4 | T23: 2403052
D24: 天然林 | E24: 3463.27 | F24: 526038 | G24: 258.01 | H24: 32597 | J24: 0 | K24: 214.45 | L24: 24824 | N24: 0 | P24: 0 | Q24: 1073.58 | R24: 127267 | S24: 5009.31 | T24: 710726
C25: その他 | E25: 128.39 | F25: 76 | G25: 19.17 | H25: 76 | J25: 0 | K25: 0.29 | L25: 0 | N25: 0 | P25: 0 | Q25: 88.33 | R25: 76 | S25: 236.18 | T25: 228
B26: 川上村 | C26: 総 数 | E26: 12055 | F26: 3052793 | G26: 404.54 | H26: 102852 | I26: 0 | J26: 0 | K26: 187.39 | L26: 41439 | M26: 0 | N26: 0 | O26: 0 | P26: 0 | Q26: 4033.3 | R26: 1112951 | S26: =SUM(S27,S30) -> 16680.23 | T26: =SUM(T27,T30) -> 4310035
C27: 立木地 | D27: 総 数 | E27: 11499.02 | F27: 3041100 | G27: 385.77 | H27: 102852 | I27: 0 | J27: 0 | K27: 159.69 | L27: 41439 | M27: 0 | N27: 0 | O27: 0 | P27: 0 | Q27: 3937.38 | R27: 1112951 | S27: =SUM(S28:S29) -> 15981.86 | T27: =SUM(T28:T29) -> 4298342
D28: 人工林 | E28: 7559.3 | F28: 2449732 | G28: 308.66 | H28: 93204 | J28: 0 | K28: 86.09 | L28: 22445 | N28: 0 | P28: 0 | Q28: 3070.24 | R28: 998493 | S28: =E28+G28+I28+K28+M28+O28+Q28 -> 11024.29 | T28: 3563874
D29: 天然林 | E29: 3939.72 | F29: 591368 | G29: 77.11 | H29: 9648 | J29: 0 | K29: 73.6 | L29: 18994 | N29: 0 | P29: 0 | Q29: 867.14 | R29: 114458 | S29: 4957.57 | T29: 734468
C30: その他 | E30: 555.98 | F30: 11693 | G30: 18.77 | H30: 0 | J30: 0 | K30: 27.7 | L30: 0 | N30: 0 | P30: 0 | Q30: 95.92 | R30: 0 | S30: 698.37 | T30: 11693
B31: 南牧村 | C31: 総 数 | E31: 4794.4 | F31: 1194687 | G31: 0 | H31: 0 | I31: 0 | J31: 0 | K31: 48.85 | L31: 3952 | M31: 0 | N31: 0 | O31: 0 | P31: 0 | Q31: 4648.62 | R31: 1176294 | S31: =SUM(S32,S35) -> 9491.87 | T31: =SUM(T32,T35) -> 2374933
C32: 立木地 | D32: 総 数 | E32: 4675.13 | F32: 1194687 | G32: 0 | H32: 0 | I32: 0 | J32: 0 | K32: 38 | L32: 3952 | M32: 0 | N32: 0 | O32: 0 | P32: 0 | Q32: 4547.68 | R32: 1176294 | S32: =SUM(S33:S34) -> 9260.81 | T32: =SUM(T33:T34) -> 2374933
D33: 人工林 | E33: 3282.4 | F33: 1034349 | H33: 0 | J33: 0 | L33: 0 | N33: 0 | P33: 0 | Q33: 3150.93 | R33: 1018840 | S33: =E33+G33+I33+K33+M33+O33+Q33 -> 6433.33 | T33: 2053189
D34: 天然林 | E34: 1392.73 | F34: 160338 | H34: 0 | J34: 0 | K34: 38 | L34: 3952 | N34: 0 | P34: 0 | Q34: 1396.75 | R34: 157454 | S34: 2827.48 | T34: 321744
C35: その他 | E35: 119.27 | F35: 0 | H35: 0 | J35: 0 | K35: 10.85 | L35: 0 | N35: 0 | P35: 0 | Q35: 100.94 | R35: 0 | S35: 231.06 | T35: 0
B36: 南相木村 | C36: 総 数 | E36: 804.77 | F36: 204316 | G36: 770.09 | H36: 150003 | I36: 0 | J36: 0 | K36: 24.71 | L36: 5067 | M36: 0 | N36: 0 | O36: 0 | P36: 0 | Q36: 946.57 | R36: 227522 | S36: =SUM(S37,S40) -> 2546.14 | T36: =SUM(T37,T40) -> 586908
C37: 立木地 | D37: 総 数 | E37: 770.96 | F37: 202887 | G37: 711.6 | H37: 147673 | I37: 0 | J37: 0 | K37: 24.27 | L37: 5067 | M37: 0 | N37: 0 | O37: 0 | P37: 0 | Q37: 890.27 | R37: 225345 | S37: =SUM(S38:S39) -> 2397.1 | T37: =SUM(T38:T39) -> 580972
D38: 人工林 | E38: 541.04 | F38: 175751 | G38: 385.43 | H38: 111850 | J38: 0 | K38: 18.75 | L38: 4630 | N38: 0 | P38: 0 | Q38: 620.4 | R38: 192361 | S38: =E38+G38+I38+K38+M38+O38+Q38 -> 1565.62 | T38: 484592
D39: 天然林 | E39: 229.92 | F39: 27136 | G39: 326.17 | H39: 35823 | J39: 0 | K39: 5.52 | L39: 437 | N39: 0 | P39: 0 | Q39: 269.87 | R39: 32984 | S39: 831.48 | T39: 96380
C40: その他 | E40: 33.81 | F40: 1429 | G40: 58.49 | H40: 2330 | J40: 0 | K40: 0.44 | L40: 0 | N40: 0 | P40: 0 | Q40: 56.3 | R40: 2177 | S40: 149.04 | T40: 5936
B41: 北相木村 | C41: 総 数 | E41: 2284.09 | F41: 579324 | G41: 0 | H41: 0 | I41: 0 | J41: 0 | K41: 0 | L41: 0 | M41: 0 | N41: 0 | O41: 0 | P41: 0 | Q41: 2301.4 | R41: 584253 | S41: =SUM(S42,S45) -> 4585.49 | T41: =SUM(T42,T45) -> 1163577
C42: 立木地 | D42: 総 数 | E42: 2176.78 | F42: 577362 | G42: 0 | H42: 0 | I42: 0 | J42: 0 | K42: 0 | L42: 0 | M42: 0 | N42: 0 | O42: 0 | P42: 0 | Q42: 2193.98 | R42: 582291 | S42: =SUM(S43:S44) -> 4370.76 | T42: =SUM(T43:T44) -> 1159653
D43: 人工林 | E43: 1450.01 | F43: 477956 | H43: 0 | J43: 0 | L43: 0 | N43: 0 | P43: 0 | Q43: 1464.38 | R43: 482286 | S43: =E43+G43+I43+K43+M43+O43+Q43 -> 2914.39 | T43: 960242
D44: 天然林 | E44: 726.77 | F44: 99406 | H44: 0 | J44: 0 | L44: 0 | N44: 0 | P44: 0 | Q44: 729.6 | R44: 100005 | S44: 1456.37 | T44: 199411
C45: その他 | E45: 107.31 | F45: 1962 | H45: 0 | J45: 0 | L45: 0 | N45: 0 | P45: 0 | Q45: 107.42 | R45: 1962 | S45: 214.73 | T45: 3924
B46: 軽井沢町 | C46: 総 数 | E46: 2528.98 | F46: 481303 | G46: 575.31 | H46: 112889 | I46: 0 | J46: 0 | K46: 353.2 | L46: 74279 | M46: 0 | N46: 0 | O46: 0 | P46: 0 | Q46: 1024.91 | R46: 192088 | S46: =SUM(S47,S50) -> 4482.4 | T46: =SUM(T47,T50) -> 860559
C47: 立木地 | D47: 総 数 | E47: 2514.78 | F47: 481303 | G47: 572.59 | H47: 112889 | I47: 0 | J47: 0 | K47: 352.6 | L47: 74279 | M47: 0 | N47: 0 | O47: 0 | P47: 0 | Q47: 1013.01 | R47: 192088 | S47: =SUM(S48:S49) -> 4452.98 | T47: =SUM(T48:T49) -> 860559
D48: 人工林 | E48: 958.31 | F48: 293803 | G48: 274.67 | H48: 76761 | J48: 0 | K48: 166.81 | L48: 52136 | N48: 0 | P48: 0 | Q48: 418.14 | R48: 121704 | S48: =E48+G48+I48+K48+M48+O48+Q48 -> 1817.93 | T48: 544404
D49: 天然林 | E49: 1556.47 | F49: 187500 | G49: 297.92 | H49: 36128 | J49: 0 | K49: 185.79 | L49: 22143 | N49: 0 | P49: 0 | Q49: 594.87 | R49: 70384 | S49: 2635.05 | T49: 316155
C50: その他 | E50: 14.2 | F50: 0 | G50: 2.72 | H50: 0 | J50: 0 | K50: 0.6 | L50: 0 | N50: 0 | P50: 0 | Q50: 11.9 | R50: 0 | S50: 29.42 | T50: 0
B51: 御代田町 | C51: 総 数 | E51: 1204.39 | F51: 263734 | G51: 236.54 | H51: 52215 | I51: 0 | J51: 0 | K51: 0 | L51: 0 | M51: 0 | N51: 0 | O51: 0 | P51: 0 | Q51: 636.76 | R51: 145207 | S51: =SUM(S52,S55) -> 2077.69 | T51: =SUM(T52,T55) -> 461156
C52: 立木地 | D52: 総 数 | E52: 1184.29 | F52: 263734 | G52: 230.97 | H52: 52215 | I52: 0 | J52: 0 | K52: 0 | L52: 0 | M52: 0 | N52: 0 | O52: 0 | P52: 0 | Q52: 625.44 | R52: 145207 | S52: =SUM(S53:S54) -> 2040.7 | T52: =SUM(T53:T54) -> 461156
D53: 人工林 | E53: 673.77 | F53: 204612 | G53: 195.02 | H53: 48270 | J53: 0 | L53: 0 | N53: 0 | P53: 0 | Q53: 491.34 | R53: 130384 | S53: =E53+G53+I53+K53+M53+O53+Q53 -> 1360.13 | T53: 383266
D54: 天然林 | E54: 510.52 | F54: 59122 | G54: 35.95 | H54: 3945 | J54: 0 | L54: 0 | N54: 0 | P54: 0 | Q54: 134.1 | R54: 14823 | S54: 680.57 | T54: 77890
C55: その他 | E55: 20.1 | F55: 0 | G55: 5.57 | H55: 0 | J55: 0 | L55: 0 | N55: 0 | P55: 0 | Q55: 11.32 | R55: 0 | S55: 36.99 | T55: 0
B56: 立科町 | C56: 総 数 | E56: 3021.19 | F56: 639924 | G56: 43.48 | H56: 11469 | I56: 0 | J56: 0 | K56: 0 | L56: 0 | M56: 0 | N56: 0 | O56: 0 | P56: 0 | Q56: 3367.92 | R56: 720412 | S56: =SUM(S57,S60) -> 6432.59 | T56: =SUM(T57,T60) -> 1371805
C57: 立木地 | D57: 総 数 | E57: 2973.89 | F57: 639924 | G57: 43.33 | H57: 11469 | I57: 0 | J57: 0 | K57: 0 | L57: 0 | M57: 0 | N57: 0 | O57: 0 | P57: 0 | Q57: 3317.15 | R57: 720412 | S57: =SUM(S58:S59) -> 6334.37 | T57: =SUM(T58:T59) -> 1371805
D58: 人工林 | E58: 1758.78 | F58: 474045 | G58: 33.15 | H58: 9863 | J58: 0 | L58: 0 | N58: 0 | P58: 0 | Q58: 1976.32 | R58: 531965 | S58: =E58+G58+I58+K58+M58+O58+Q58 -> 3768.25 | T58: 1015873
D59: 天然林 | E59: 1215.11 | F59: 165879 | G59: 10.18 | H59: 1606 | J59: 0 | L59: 0 | N59: 0 | P59: 0 | Q59: 1340.83 | R59: 188447 | S59: 2566.12 | T59: 355932
C60: その他 | E60: 47.3 | F60: 0 | G60: 0.15 | H60: 0 | J60: 0 | L60: 0 | N60: 0 | P60: 0 | Q60: 50.77 | S60: 98.22 | T60: 0
A61: 佐久 | B61: 佐久計 | C61: 総 数 | E61: 53753.94 | F61: 13066256 | G61: 4953.56 | H61: 1182898 | I61: 0 | J61: 0 | K61: 939.61 | L61: 178355 | M61: 0 | N61: 0 | O61: 0 | P61: 0 | Q61: 35271.96 | R61: 8825183 | S61: =SUM(S62,S65) -> 94919.07 | T61: =SUM(T62,T65) -> 23252692
C62: 立木地 | D62: 総 数 | E62: 52376.77 | F62: 13050690 | G62: 4824.87 | H62: 1180492 | I62: 0 | J62: 0 | K62: 898.05 | L62: 178355 | M62: 0 | N62: 0 | O62: 0 | P62: 0 | Q62: 34433.27 | R62: 8820830 | S62: =SUM(S63:S64) -> 92532.96 | T62: =SUM(T63:T64) -> 23230367
D63: 人工林 | E63: 32935.65 | F63: 10388678 | G63: 3207.79 | H63: 989704 | I63: 0 | J63: 0 | K63: 345.55 | L63: 103094 | M63: 0 | N63: 0 | O63: 0 | P63: 0 | Q63: 23623.06 | R63: 7411160 | S63: =E63+G63+I63+K63+M63+O63+Q63 -> 60112.05 | T63: 18892636
D64: 天然林 | E64: 19441.12 | F64: 2662012 | G64: 1617.08 | H64: 190788 | I64: 0 | J64: 0 | K64: 552.5 | L64: 75261 | M64: 0 | N64: 0 | O64: 0 | P64: 0 | Q64: 10810.21 | R64: 1409670 | S64: 32420.91 | T64: 4337731
C65: その他 | E65: 1377.17 | F65: 15566 | G65: 128.69 | H65: 2406 | I65: 0 | J65: 0 | K65: 41.56 | L65: 0 | M65: 0 | N65: 0 | O65: 0 | P65: 0 | Q65: 838.69 | R65: 4353 | S65: 2386.11 | T65: 22325
A66: 上田 | B66: 上田市 | C66: 総 数 | E66: 22828.14 | F66: 5230685 | G66: 7564.45 | H66: 1667637 | I66: 0 | J66: 0 | K66: 383.43 | L66: 100279 | M66: 0 | N66: 0 | O66: 0 | P66: 0 | Q66: 27322.98 | R66: 6103386 | S66: =SUM(S67,S70) -> 58099 | T66: =SUM(T67,T70) -> 13101987
C67: 立木地 | D67: 総 数 | E67: 21970.52 | F67: 5193027 | G67: 7207.26 | H67: 1653524 | I67: 0 | J67: 0 | K67: 372.84 | L67: 100279 | M67: 0 | N67: 0 | O67: 0 | P67: 0 | Q67: 26384.4 | R67: 6065705 | S67: =SUM(S68:S69) -> 55935.02 | T67: =SUM(T68:T69) -> 13012535
D68: 人工林 | E68: 12062.91 | F68: 3811378 | G68: 3697.98 | H68: 1135534 | J68: 0 | K68: 176.38 | L68: 54033 | N68: 0 | P68: 0 | Q68: 13701.47 | R68: 4263473 | S68: =E68+G68+I68+K68+M68+O68+Q68 -> 29638.74 | T68: 9264418
D69: 天然林 | E69: 9907.61 | F69: 1381649 | G69: 3509.28 | H69: 517990 | J69: 0 | K69: 196.46 | L69: 46246 | N69: 0 | P69: 0 | Q69: 12682.93 | R69: 1802232 | S69: 26296.28 | T69: 3748117
C70: その他 | E70: 857.62 | F70: 37658 | G70: 357.19 | H70: 14113 | J70: 0 | K70: 10.59 | L70: 0 | N70: 0 | P70: 0 | Q70: 938.58 | R70: 37681 | S70: 2163.98 | T70: 89452
B71: 東御市 | C71: 総 数 | E71: 572.23 | F71: 127332 | G71: 619.54 | H71: 123238 | I71: 0 | J71: 0 | K71: 11.17 | L71: 2738 | M71: 0 | N71: 0 | O71: 34.34 | P71: 6297 | Q71: 1587.87 | R71: 336439 | S71: =SUM(S72,S75) -> 2825.15 | T71: =SUM(T72,T75) -> 596044
C72: 立木地 | D72: 総 数 | E72: 562.32 | F72: 127332 | G72: 610.4 | H72: 122509 | I72: 0 | J72: 0 | K72: 11.09 | L72: 2738 | M72: 0 | N72: 0 | O72: 34.11 | P72: 6297 | Q72: 1565 | R72: 336439 | S72: =SUM(S73:S74) -> 2782.92 | T72: =SUM(T73:T74) -> 595315
D73: 人工林 | E73: 440.68 | F73: 114364 | G73: 322.89 | H73: 84324 | J73: 0 | K73: 3.75 | L73: 1105 | N73: 0 | O73: 6.7 | P73: 2033 | Q73: 962.47 | R73: 258967 | S73: =E73+G73+I73+K73+M73+O73+Q73 -> 1736.49 | T73: 460793
D74: 天然林 | E74: 121.64 | F74: 12968 | G74: 287.51 | H74: 38185 | J74: 0 | K74: 7.34 | L74: 1633 | N74: 0 | O74: 27.41 | P74: 4264 | Q74: 602.53 | R74: 77472 | S74: 1046.43 | T74: 134522
C75: その他 | E75: 9.91 | F75: 0 | G75: 9.14 | H75: 729 | J75: 0 | K75: 0.08 | L75: 0 | N75: 0 | O75: 0.23 | P75: 0 | Q75: 22.87 | R75: 0 | S75: 42.23 | T75: 729
B76: 長和町 | C76: 総 数 | E76: 2342.67 | F76: 557043 | G76: 1197.41 | H76: 300621 | I76: 0 | J76: 0 | K76: 304.32 | L76: 70615 | M76: 0 | N76: 0 | O76: 0 | P76: 0 | Q76: 7567.4 | R76: 1853843 | S76: =SUM(S77,S80) -> 11411.8 | T76: =SUM(T77,T80) -> 2782122
C77: 立木地 | D77: 総 数 | E77: 2266.46 | F77: 557043 | G77: 1176.86 | H77: 300621 | I77: 0 | J77: 0 | K77: 289.39 | L77: 70615 | M77: 0 | N77: 0 | O77: 0 | P77: 0 | Q77: 7361.91 | R77: 1853843 | S77: =SUM(S78:S79) -> 11094.62 | T77: =SUM(T78:T79) -> 2782122
D78: 人工林 | E78: 1501.63 | F78: 456314 | G78: 743.6 | H78: 231775 | J78: 0 | K78: 208.69 | L78: 61765 | N78: 0 | P78: 0 | Q78: 4729.12 | R78: 1477509 | S78: =E78+G78+I78+K78+M78+O78+Q78 -> 7183.04 | T78: 2227363
D79: 天然林 | E79: 764.83 | F79: 100729 | G79: 433.26 | H79: 68846 | J79: 0 | K79: 80.7 | L79: 8850 | N79: 0 | P79: 0 | Q79: 2632.79 | R79: 376334 | S79: 3911.58 | T79: 554759
C80: その他 | E80: 76.21 | F80: 0 | G80: 20.55 | H80: 0 | J80: 0 | K80: 14.93 | L80: 0 | N80: 0 | P80: 0 | Q80: 205.49 | R80: 0 | S80: 317.18 | T80: 0
B81: 青木村 | C81: 総 数 | E81: 3263.31 | F81: 846965 | G81: 1071.8 | H81: 268919 | I81: 52.57 | J81: 10517 | K81: 33.66 | L81: 6841 | M81: 0 | N81: 0 | O81: 0 | P81: 0 | Q81: 3604.18 | R81: 919116 | S81: =SUM(S82,S85) -> 8025.52 | T81: =SUM(T82,T85) -> 2052358
C82: 立木地 | D82: 総 数 | E82: 3209.61 | F82: 846965 | G82: 1055.14 | H82: 268919 | I82: 52.57 | J82: 10517 | K82: 33.36 | L82: 6841 | M82: 0 | N82: 0 | O82: 0 | P82: 0 | Q82: 3542.53 | R82: 919116 | S82: =SUM(S83:S84) -> 7893.21 | T82: =SUM(T83:T84) -> 2052358
D83: 人工林 | E83: 2075.54 | F83: 664828 | G83: 677.9 | H83: 205383 | I83: 25.78 | J83: 7534 | K83: 12.28 | L83: 3505 | N83: 0 | P83: 0 | Q83: 2255.93 | R83: 711460 | S83: =E83+G83+I83+K83+M83+O83+Q83 -> 5047.43 | T83: 1592710
D84: 天然林 | E84: 1134.07 | F84: 182137 | G84: 377.24 | H84: 63536 | I84: 26.79 | J84: 2983 | K84: 21.08 | L84: 3336 | N84: 0 | P84: 0 | Q84: 1286.6 | R84: 207656 | S84: 2845.78 | T84: 459648
C85: その他 | E85: 53.7 | F85: 0 | G85: 16.66 | H85: 0 | J85: 0 | K85: 0.3 | L85: 0 | N85: 0 | P85: 0 | Q85: 61.65 | R85: 0 | S85: 132.31 | T85: 0
B86: 上田計 | C86: 総 数 | E86: 29006.35 | F86: 6762025 | G86: 10453.2 | H86: 2360415 | I86: 52.57 | J86: 10517 | K86: 732.58 | L86: 180473 | M86: 0 | N86: 0 | O86: 34.34 | P86: 6297 | Q86: 40082.43 | R86: 9212784 | S86: =SUM(S87,S90) -> 80361.47 | T86: =SUM(T87,T90) -> 18532511
C87: 立木地 | D87: 総 数 | E87: 28008.91 | F87: 6724367 | G87: 10049.66 | H87: 2345573 | I87: 52.57 | J87: 10517 | K87: 706.68 | L87: 180473 | M87: 0 | N87: 0 | O87: 34.11 | P87: 6297 | Q87: 38853.84 | R87: 9175103 | S87: =SUM(S88:S89) -> 77705.77 | T87: =SUM(T88:T89) -> 18442330
D88: 人工林 | E88: 16080.76 | F88: 5046884 | G88: 5442.37 | H88: 1657016 | I88: 25.78 | J88: 7534 | K88: 401.1 | L88: 120408 | M88: 0 | N88: 0 | O88: 6.7 | P88: 2033 | Q88: 21648.99 | R88: 6711409 | S88: =E88+G88+I88+K88+M88+O88+Q88 -> 43605.7 | T88: 13545284
D89: 天然林 | E89: 11928.15 | F89: 1677483 | G89: 4607.29 | H89: 688557 | I89: 26.79 | J89: 2983 | K89: 305.58 | L89: 60065 | M89: 0 | N89: 0 | O89: 27.41 | P89: 4264 | Q89: 17204.85 | R89: 2463694 | S89: 34100.07 | T89: 4897046
C90: その他 | E90: 997.44 | F90: 37658 | G90: 403.54 | H90: 14842 | I90: 0 | J90: 0 | K90: 25.9 | L90: 0 | M90: 0 | N90: 0 | O90: 0.23 | P90: 0 | Q90: 1228.59 | R90: 37681 | S90: 2655.7 | T90: 90181
A91: 計画区計 | C91: 総 数 | E91: 82760.29 | F91: 19828281 | G91: 15406.76 | H91: 3543313 | I91: 52.57 | J91: 10517 | K91: 1672.19 | L91: 358828 | M91: 0 | N91: 0 | O91: 34.34 | P91: 6297 | Q91: 75354.39 | R91: 18037967 | S91: =SUM(S92,S95) -> 175280.54 | T91: =SUM(T92,T95) -> 41785203
C92: 立木地 | D92: 総 数 | E92: 80385.68 | F92: 19775057 | G92: 14874.53 | H92: 3526065 | I92: 52.57 | J92: 10517 | K92: 1604.73 | L92: 358828 | M92: 0 | N92: 0 | O92: 34.11 | P92: 6297 | Q92: 73287.11 | R92: 17995933 | S92: =SUM(S93:S94) -> 170238.73 | T92: =SUM(T93:T94) -> 41672697
D93: 人工林 | E93: 49016.41 | F93: 15435562 | G93: 8650.16 | H93: 2646720 | I93: 25.78 | J93: 7534 | K93: 746.65 | L93: 223502 | M93: 0 | N93: 0 | O93: 6.7 | P93: 2033 | Q93: 45272.05 | R93: 14122569 | S93: =E93+G93+I93+K93+M93+O93+Q93 -> 103717.75 | T93: 32437920
D94: 天然林 | E94: 31369.27 | F94: 4339495 | G94: 6224.37 | H94: 879345 | I94: 26.79 | J94: 2983 | K94: 858.08 | L94: 135326 | M94: 0 | N94: 0 | O94: 27.41 | P94: 4264 | Q94: 28015.06 | R94: 3873364 | S94: 66520.98 | T94: 9234777
C95: その他 | E95: 2374.61 | F95: 53224 | G95: 532.23 | H95: 17248 | I95: 0 | J95: 0 | K95: 67.46 | L95: 0 | M95: 0 | N95: 0 | O95: 0.23 | P95: 0 | Q95: 2067.28 | R95: 42034 | S95: 5041.81 | T95: 112506
Q96: =Q91+O91+M91+K91+I91+G91+E91 -> 175280.54 | R96: =R91+P91+N91+L91+J91+H91+F91 -> 41785203

Sheet 伊那谷
A1: 第10-1表 市町村別・公益的機能別施業森林等区分別ゾーニング別・資源表
R2: （単位 面積：ha 蓄積：m3）
A3: 地域振興局 | B3: 市町村名 | C3: 区 分 | E3: 公益的機能別施業森林等区分別
E4: 水かん | G4: 山災/土壌 | I4: 快適環境 | K4: 保健 | M4: 文化 | O4: 独自 | Q4: 木材 | S4: 総数
E5: 面積 | F5: 蓄積 | G5: 面積 | H5: 蓄積 | I5: 面積 | J5: 蓄積 | K5: 面積 | L5: 蓄積 | M5: 面積 | N5: 蓄積 | O5: 面積 | P5: 蓄積 | Q5: 面積 | R5: 蓄積 | S5: 面積 | T5: 蓄積
A6: 諏訪 | B6: 岡谷市 | C6: 総 数 | E6: 1409.2 | F6: 319791 | G6: 5157.92 | H6: 1206066 | I6: 0 | J6: 0 | K6: 200.37 | L6: 15940 | M6: 0 | N6: 0 | O6: 0 | P6: 0 | Q6: 5473.89 | R6: 1302371 | S6: =SUM(S7,S10) -> 12241.38 | T6: =SUM(T7,T10) -> 2844168
C7: 立木地 | D7: 総 数 | E7: 1397.7 | F7: 319791 | G7: 5023.71 | H7: 1206066 | I7: 0 | J7: 0 | K7: 116.35 | L7: 15940 | M7: 0 | N7: 0 | O7: 0 | P7: 0 | Q7: 5379.39 | R7: 1302371 | S7: =SUM(S8:S9) -> 11917.15 | T7: =SUM(T8:T9) -> 2844168
D8: 人工林 | E8: 1216.6 | F8: 288819 | G8: 3563.06 | H8: 916187 | J8: 0 | K8: 33.44 | L8: 7688 | N8: 0 | P8: 0 | Q8: 3765.74 | R8: 975107 | S8: =E8+G8+I8+K8+M8+O8+Q8 -> 8578.84 | T8: 2187801
D9: 天然林 | E9: 181.1 | F9: 30972 | G9: 1460.65 | H9: 289879 | J9: 0 | K9: 82.91 | L9: 8252 | N9: 0 | P9: 0 | Q9: 1613.65 | R9: 327264 | S9: 3338.31 | T9: 656367
C10: その他 | E10: 11.5 | F10: 0 | G10: 134.21 | H10: 0 | J10: 0 | K10: 84.02 | L10: 0 | N10: 0 | P10: 0 | Q10: 94.5 | R10: 0 | S10: 324.23 | T10: 0
B11: 諏訪市 | C11: 総 数 | E11: 5558.37 | F11: 1239594 | G11: 5558.37 | H11: 1239594 | I11: 0 | J11: 0 | K11: 1243.51 | L11: 131160 | M11: 0 | N11: 0 | O11: 0 | P11: 0 | Q11: 454.99 | R11: 125011 | S11: =SUM(S12,S15) -> 12815.24 | T11: =SUM(T12,T15) -> 2735359
C12: 立木地 | D12: 総 数 | E12: 5331.74 | F12: 1239594 | G12: 5331.74 | H12: 1239594 | I12: 0 | J12: 0 | K12: 592.14 | L12: 131160 | M12: 0 | N12: 0 | O12: 0 | P12: 0 | Q12: 445.45 | R12: 125011 | S12: =SUM(S13:S14) -> 11701.07 | T12: =SUM(T13:T14) -> 2735359
D13: 人工林 | E13: 3309.58 | F13: 904668 | G13: 3309.58 | H13: 904668 | J13: 0 | K13: 468.13 | L13: 119781 | N13: 0 | P13: 0 | Q13: 329.26 | R13: 100363 | S13: =E13+G13+I13+K13+M13+O13+Q13 -> 7416.55 | T13: 2029480
D14: 天然林 | E14: 2022.16 | F14: 334926 | G14: 2022.16 | H14: 334926 | J14: 0 | K14: 124.01 | L14: 11379 | N14: 0 | P14: 0 | Q14: 116.19 | R14: 24648 | S14: 4284.52 | T14: 705879
C15: その他 | E15: 226.63 | F15: 0 | G15: 226.63 | H15: 0 | J15: 0 | K15: 651.37 | L15: 0 | N15: 0 | P15: 0 | Q15: 9.54 | R15: 0 | S15: 1114.17 | T15: 0
B16: 茅野市 | C16: 総 数 | E16: 2828.79 | F16: 454739 | G16: 1519.05 | H16: 329123 | I16: 5189.69 | J16: 1022306 | K16: 730.9 | L16: 173546 | M16: 0 | N16: 0 | O16: 0 | P16: 0 | Q16: 5151.48 | R16: 919442 | S16: =SUM(S17,S20) -> 15419.91 | T16: =SUM(T17,T20) -> 2899156
C17: 立木地 | D17: 総 数 | E17: 2719.38 | F17: 454739 | G17: 1487.88 | H17: 329123 | I17: 4913.81 | J17: 1022306 | K17: 725.7 | L17: 173546 | M17: 0 | N17: 0 | O17: 0 | P17: 0 | Q17: 4857.7 | R17: 919442 | S17: =SUM(S18:S19) -> 14704.47 | T17: =SUM(T18:T19) -> 2899156
D18: 人工林 | E18: 865.97 | F18: 199182 | G18: 747.21 | H18: 212285 | I18: 2456.33 | J18: 679135 | K18: 389.09 | L18: 111122 | N18: 0 | P18: 0 | Q18: 2185.46 | R18: 578269 | S18: =E18+G18+I18+K18+M18+O18+Q18 -> 6644.06 | T18: 1779993
D19: 天然林 | E19: 1853.41 | F19: 255557 | G19: 740.67 | H19: 116838 | I19: 2457.48 | J19: 343171 | K19: 336.61 | L19: 62424 | N19: 0 | P19: 0 | Q19: 2672.24 | R19: 341173 | S19: 8060.41 | T19: 1119163
C20: その他 | E20: 109.41 | F20: 0 | G20: 31.17 | H20: 0 | I20: 275.88 | J20: 0 | K20: 5.2 | L20: 0 | N20: 0 | P20: 0 | Q20: 293.78 | R20: 0 | S20: 715.44 | T20: 0
B21: 下諏訪町 | C21: 総 数 | E21: 3195.01 | F21: 651388 | G21: 477.55 | H21: 111278 | I21: 330.52 | J21: 81842 | K21: 47.15 | L21: 11774 | M21: 0 | N21: 0 | O21: 0 | P21: 0 | Q21: 2528.94 | R21: 569210 | S21: =SUM(S22,S25) -> 6579.17 | T21: =SUM(T22,T25) -> 1425492
C22: 立木地 | D22: 総 数 | E22: 3085.75 | F22: 651388 | G22: 464.45 | H22: 111278 | I22: 324.38 | J22: 81842 | K22: 46.43 | L22: 11774 | M22: 0 | N22: 0 | O22: 0 | P22: 0 | Q22: 2466.9 | R22: 569210 | S22: =SUM(S23:S24) -> 6387.91 | T22: =SUM(T23:T24) -> 1425492
D23: 人工林 | E23: 1860.01 | F23: 496085 | G23: 238.93 | H23: 75143 | I23: 176.45 | J23: 55177 | K23: 45.46 | L23: 11711 | N23: 0 | P23: 0 | Q23: 1489.54 | R23: 424971 | S23: =E23+G23+I23+K23+M23+O23+Q23 -> 3810.39 | T23: 1063087
D24: 天然林 | E24: 1225.74 | F24: 155303 | G24: 225.52 | H24: 36135 | I24: 147.93 | J24: 26665 | K24: 0.97 | L24: 63 | N24: 0 | P24: 0 | Q24: 977.36 | R24: 144239 | S24: 2577.52 | T24: 362405
C25: その他 | E25: 109.26 | F25: 0 | G25: 13.1 | H25: 0 | I25: 6.14 | J25: 0 | K25: 0.72 | L25: 0 | N25: 0 | P25: 0 | Q25: 62.04 | R25: 0 | S25: 191.26 | T25: 0
B26: 富士見町 | C26: 総 数 | E26: 3064.08 | F26: 625455 | G26: 4110.65 | H26: 975296 | I26: 743.8 | J26: 193841 | K26: 24.96 | L26: 4976 | M26: 0 | N26: 0 | O26: 0 | P26: 0 | Q26: 87.44 | R26: 22436 | S26: =SUM(S27,S30) -> 8030.93 | T26: =SUM(T27,T30) -> 1822004
C27: 立木地 | D27: 総 数 | E27: 2940.44 | F27: 625226 | G27: 3976.37 | H27: 975296 | I27: 731.91 | J27: 193841 | K27: 24.54 | L27: 4976 | M27: 0 | N27: 0 | O27: 0 | P27: 0 | Q27: 87.09 | R27: 22436 | S27: =SUM(S28:S29) -> 7760.35 | T27: =SUM(T28:T29) -> 1821775
D28: 人工林 | E28: 1484.55 | F28: 405825 | G28: 2269.97 | H28: 650412 | I28: 418.55 | J28: 126970 | K28: 4.12 | L28: 1179 | N28: 0 | P28: 0 | Q28: 77.1 | R28: 20033 | S28: =E28+G28+I28+K28+M28+O28+Q28 -> 4254.29 | T28: 1204419
D29: 天然林 | E29: 1455.89 | F29: 219401 | G29: 1706.4 | H29: 324884 | I29: 313.36 | J29: 66871 | K29: 20.42 | L29: 3797 | N29: 0 | P29: 0 | Q29: 9.99 | R29: 2403 | S29: 3506.06 | T29: 617356
C30: その他 | E30: 123.64 | F30: 229 | G30: 134.28 | H30: 0 | I30: 11.89 | J30: 0 | K30: 0.42 | L30: 0 | N30: 0 | P30: 0 | Q30: 0.35 | R30: 0 | S30: 270.58 | T30: 229
B31: 原村 | C31: 総 数 | E31: 836.21 | F31: 172269 | G31: 165.94 | H31: 29578 | I31: 669.18 | J31: 127149 | K31: 308.98 | L31: 70978 | M31: 324.69 | N31: 37694 | O31: 0 | P31: 0 | Q31: 421.87 | R31: 82537 | S31: =SUM(S32,S35) -> 2726.87 | T31: =SUM(T32,T35) -> 520205
C32: 立木地 | D32: 総 数 | E32: 795.46 | F32: 172269 | G32: 161.38 | H32: 29578 | I32: 653.53 | J32: 127149 | K32: 300.54 | L32: 70978 | M32: 265.49 | N32: 37694 | O32: 0 | P32: 0 | Q32: 390.46 | R32: 82537 | S32: =SUM(S33:S34) -> 2566.86 | T32: =SUM(T33:T34) -> 520205
D33: 人工林 | E33: 504.31 | F33: 120132 | G33: 123.29 | H33: 24201 | I33: 316.27 | J33: 78364 | K33: 120.03 | L33: 35482 | M33: 48.2 | N33: 9438 | P33: 0 | Q33: 315.79 | R33: 71136 | S33: =E33+G33+I33+K33+M33+O33+Q33 -> 1427.89 | T33: 338753
D34: 天然林 | E34: 291.15 | F34: 52137 | G34: 38.09 | H34: 5377 | I34: 337.26 | J34: 48785 | K34: 180.51 | L34: 35496 | M34: 217.29 | N34: 28256 | P34: 0 | Q34: 74.67 | R34: 11401 | S34: 1138.97 | T34: 181452
C35: その他 | E35: 40.75 | F35: 0 | G35: 4.56 | H35: 0 | I35: 15.65 | J35: 0 | K35: 8.44 | L35: 0 | M35: 59.2 | N35: 0 | P35: 0 | Q35: 31.41 | R35: 0 | S35: 160.01 | T35: 0
B36: 諏訪計 | C36: 総 数 | E36: 16891.66 | F36: 3463236 | G36: 16989.48 | H36: 3890935 | I36: 6933.19 | J36: 1425138 | K36: 2555.87 | L36: 408374 | M36: 324.69 | N36: 37694 | O36: 0 | P36: 0 | Q36: 14118.61 | R36: 3021007 | S36: =SUM(S37,S40) -> 57813.5 | T36: =SUM(T37,T40) -> 12246384
C37: 立木地 | D37: 総 数 | E37: 16270.47 | F37: 3463007 | G37: 16445.53 | H37: 3890935 | I37: 6623.63 | J37: 1425138 | K37: 1805.7 | L37: 408374 | M37: 265.49 | N37: 37694 | O37: 0 | P37: 0 | Q37: 13626.99 | R37: 3021007 | S37: =SUM(S38:S39) -> 55037.81 | T37: =SUM(T38:T39) -> 12246155
D38: 人工林 | E38: 9241.02 | F38: 2414711 | G38: 10252.04 | H38: 2782896 | I38: 3367.6 | J38: 939646 | K38: 1060.27 | L38: 286963 | M38: 48.2 | N38: 9438 | O38: 0 | P38: 0 | Q38: 8162.89 | R38: 2169879 | S38: =E38+G38+I38+K38+M38+O38+Q38 -> 32132.02 | T38: =F38+H38+J38+L38+N38+P38+R38 -> 8603533
D39: 天然林 | E39: 7029.45 | F39: 1048296 | G39: 6193.49 | H39: 1108039 | I39: 3256.03 | J39: 485492 | K39: 745.43 | L39: 121411 | M39: 217.29 | N39: 28256 | O39: 0 | P39: 0 | Q39: 5464.1 | R39: 851128 | S39: 22905.79 | T39: 3642622
C40: その他 | E40: 621.19 | F40: 229 | G40: 543.95 | H40: 0 | I40: 309.56 | J40: 0 | K40: 750.17 | L40: 0 | M40: 59.2 | N40: 0 | O40: 0 | P40: 0 | Q40: 491.62 | R40: 0 | S40: =E40+G40+I40+K40+M40+O40+Q40 -> 2775.69 | T40: 229
A41: 上伊那 | B41: 伊那市 | C41: 総 数 | E41: 10374.23 | F41: 2171490 | G41: 8445.99 | H41: 1822759 | I41: 0 | J41: 0 | K41: 1063.27 | L41: 198958 | M41: 0 | N41: 0 | O41: 0 | P41: 0 | Q41: 24978.58 | R41: 5542230 | S41: =SUM(S42,S45) -> 767191.78 | T41: =SUM(T42,T45) -> 9735437
C42: 立木地 | D42: 総 数 | E42: 10192.38 | F42: 2170498 | G42: 8243.91 | H42: 1821752 | I42: 0 | J42: 0 | K42: 1030.69 | L42: 198958 | M42: 0 | N42: 0 | O42: 0 | P42: 0 | Q42: 24540.8 | R42: 5541238 | S42: =SUM(S43:S44) -> 44007.78 | T42: =SUM(T43:T44) -> 9732446
D43: 人工林 | E43: 7138.57 | F43: 1721730 | G43: 5290.48 | H43: 1372899 | J43: 0 | K43: 336.14 | L43: 89073 | N43: 0 | P43: 0 | Q43: 16075.24 | R43: 4166920 | S43: =E43+G43+I43+K43+M43+O43+Q43 -> 28840.43 | T43: 7350622
D44: 天然林 | E44: 3053.81 | F44: 448768 | G44: 2953.43 | H44: 448853 | J44: 0 | K44: 694.55 | L44: 109885 | N44: 0 | P44: 0 | Q44: 8465.56 | R44: 1374318 | S44: 15167.35 | T44: 2381824
C45: その他 | E45: 181.85 | F45: 992 | G45: 202.08 | H45: 1007 | J45: 0 | K45: 32.58 | L45: 0 | N45: 0 | P45: 0 | Q45: 437.78 | R45: 992 | S45: 723184 | T45: 2991
B46: 駒ヶ根市 | C46: 総 数 | E46: 2553.48 | F46: 516119 | G46: 981.98 | H46: 200670 | I46: 0 | J46: 0 | K46: 440.39 | L46: 86187 | M46: 17.86 | N46: 6000 | O46: 0 | P46: 0 | Q46: 3597.46 | R46: 805909 | S46: 180874 | T46: =SUM(T47,T50) -> 1614885
C47: 立木地 | D47: 総 数 | E47: 2475.36 | F47: 516119 | G47: 937.02 | H47: 200670 | I47: 0 | J47: 0 | K47: 434.36 | L47: 86187 | M47: 17.8 | N47: 6000 | O47: 0 | P47: 0 | Q47: 3544.45 | R47: 805909 | S47: 0 | T47: =SUM(T48:T49) -> 1614885
D48: 人工林 | E48: 1766.29 | F48: 419053 | G48: 538.32 | H48: 138267 | J48: 0 | K48: 221.35 | L48: 54670 | M48: 12.51 | N48: 4277 | P48: 0 | Q48: 1990.88 | R48: 518065 | S48: =E48+G48+I48+K48+M48+O48+Q48 -> 4529.35 | T48: 1134332
D49: 天然林 | E49: 709.07 | F49: 97066 | G49: 398.7 | H49: 62403 | J49: 0 | K49: 213.01 | L49: 31517 | M49: 5.29 | N49: 1723 | P49: 0 | Q49: 1553.57 | R49: 287844 | S49: 2879.64 | T49: 480553
C50: その他 | E50: 78.12 | F50: 0 | G50: 44.96 | H50: 0 | J50: 0 | K50: 6.03 | L50: 0 | M50: 0.06 | N50: 0 | P50: 0 | Q50: 53.01 | R50: 0 | S50: 182.18 | T50: 0
B51: 辰野町 | C51: 総 数 | E51: 2849.68 | F51: 665097 | G51: 2719.9 | H51: 654735 | I51: 0 | J51: 0 | K51: 163.62 | L51: 41274 | M51: 0 | N51: 0 | O51: 0 | P51: 0 | Q51: 5644.65 | R51: 1375063 | S51: =SUM(S52,S55) -> 11377.85 | T51: =SUM(T52,T55) -> 2736169
C52: 立木地 | D52: 総 数 | E52: 2811.51 | F52: 665097 | G52: 2673.43 | H52: 654735 | I52: 0 | J52: 0 | K52: 162.75 | L52: 41274 | M52: 0 | N52: 0 | O52: 0 | P52: 0 | Q52: 5567.96 | R52: 1375063 | S52: =SUM(S53:S54) -> 11215.65 | T52: =SUM(T53:T54) -> 2736169
D53: 人工林 | E53: 2002.4 | F53: 503795 | G53: 1664.27 | H53: 450624 | J53: 0 | K53: 116.79 | L53: 30383 | N53: 0 | P53: 0 | Q53: 4102.12 | R53: 1083565 | S53: =E53+G53+I53+K53+M53+O53+Q53 -> 7885.58 | T53: 2068367
D54: 天然林 | E54: 809.11 | F54: 161302 | G54: 1009.16 | H54: 204111 | J54: 0 | K54: 45.96 | L54: 10891 | N54: 0 | P54: 0 | Q54: 1465.84 | R54: 291498 | S54: 3330.07 | T54: 667802
C55: その他 | E55: 38.17 | F55: 0 | G55: 46.47 | H55: 0 | J55: 0 | K55: 0.87 | L55: 0 | N55: 0 | P55: 0 | Q55: 76.69 | R55: 0 | S55: 162.2 | T55: 0
B56: 箕輪町 | C56: 総 数 | E56: 3605.39 | F56: 832639 | G56: 1413.5 | H56: 317112 | I56: 0 | J56: 0 | K56: 441.04 | L56: 105213 | M56: 2.67 | N56: 587 | O56: 0 | P56: 0 | Q56: 4051.25 | R56: 957716 | S56: =SUM(S57,S60) -> 9513.85 | T56: =SUM(T57,T60) -> 2213267
C57: 立木地 | D57: 総 数 | E57: 3563.34 | F57: 832639 | G57: 1404.35 | H57: 317112 | I57: 0 | J57: 0 | K57: 440.11 | L57: 105213 | M57: 2.67 | N57: 587 | O57: 0 | P57: 0 | Q57: 4005.88 | R57: 957716 | S57: =SUM(S58:S59) -> 9416.35 | T57: =SUM(T58:T59) -> 2213267
D58: 人工林 | E58: 2565.94 | F58: 670547 | G58: 856.18 | H58: 222643 | J58: 0 | K58: 273.96 | L58: 73526 | M58: 0.99 | N58: 237 | P58: 0 | Q58: 2891.89 | R58: 769046 | S58: =E58+G58+I58+K58+M58+O58+Q58 -> 6588.96 | T58: 1735999
D59: 天然林 | E59: 997.4 | F59: 162092 | G59: 548.17 | H59: 94469 | J59: 0 | K59: 166.15 | L59: 31687 | M59: 1.68 | N59: 350 | P59: 0 | Q59: 1113.99 | R59: 188670 | S59: 2827.39 | T59: 477268
C60: その他 | E60: 42.05 | F60: 0 | G60: 9.15 | H60: 0 | J60: 0 | K60: 0.93 | L60: 0 | N60: 0 | P60: 0 | Q60: 45.37 | R60: 0 | S60: 97.5 | T60: 0
A61: 上伊那 | B61: 飯島町 | C61: 総 数 | E61: 966.75 | F61: 181102 | G61: 669.3 | H61: 137539 | I61: 0 | J61: 0 | K61: 143.49 | L61: 25661 | M61: 0 | N61: 0 | O61: 0 | P61: 0 | Q61: 2058.76 | R61: 415588 | S61: =SUM(S62,S65) -> 3838.3 | T61: =SUM(T62,T65) -> 759890
C62: 立木地 | D62: 総 数 | E62: 916.7 | F62: 181102 | G62: 645.48 | H62: 137539 | I62: 0 | J62: 0 | K62: 134.46 | L62: 25661 | M62: 0 | N62: 0 | O62: 0 | P62: 0 | Q62: 1965.81 | R62: 415588 | S62: =SUM(S63:S64) -> 3662.45 | T62: =SUM(T63:T64) -> 759890
D63: 人工林 | E63: 504.38 | F63: 127488 | G63: 377.79 | H63: 94646 | J63: 0 | K63: 37.78 | L63: 10291 | N63: 0 | P63: 0 | Q63: 1048.49 | R63: 268857 | S63: =E63+G63+I63+K63+M63+O63+Q63 -> 1968.44 | T63: 501282
D64: 天然林 | E64: 412.32 | F64: 53614 | G64: 267.69 | H64: 42893 | J64: 0 | K64: 96.68 | L64: 15370 | N64: 0 | P64: 0 | Q64: 917.32 | R64: 146731 | S64: 1694.01 | T64: 258608
C65: その他 | E65: 50.05 | F65: 0 | G65: 23.82 | H65: 0 | J65: 0 | K65: 9.03 | L65: 0 | N65: 0 | P65: 0 | Q65: 92.95 | R65: 0 | S65: 175.85 | T65: 0
B66: 南箕輪村 | C66: 総 数 | E66: 1739.14 | F66: 361398 | G66: 1032.31 | H66: 211090 | I66: 92.93 | J66: 31307 | K66: 88.35 | L66: 37256 | M66: 5.08 | N66: 1282 | O66: 0 | P66: 0 | Q66: 1854.91 | R66: 415118 | S66: =SUM(S67,S70) -> 4812.72 | T66: =SUM(T67,T70) -> 1057451
C67: 立木地 | D67: 総 数 | E67: 1710.18 | F67: 361398 | G67: 1004.61 | H67: 211090 | I67: 91.76 | J67: 31307 | K67: 88.35 | L67: 37256 | M67: 5.08 | N67: 1282 | O67: 0 | P67: 0 | Q67: 1822.38 | R67: 415118 | S67: =SUM(S68:S69) -> 4722.36 | T67: =SUM(T68:T69) -> 1057451
D68: 人工林 | E68: 1340.72 | F68: 320377 | G68: 665.36 | H68: 169756 | I68: 53.12 | J68: 22359 | K68: 67.55 | L68: 32496 | M68: 5.02 | N68: 1278 | P68: 0 | Q68: 1395.25 | R68: 357075 | S68: =E68+G68+I68+K68+M68+O68+Q68 -> 3527.02 | T68: 903341
D69: 天然林 | E69: 369.46 | F69: 41021 | G69: 339.25 | H69: 41334 | I69: 38.64 | J69: 8948 | K69: 20.8 | L69: 4760 | M69: 0.06 | N69: 4 | P69: 0 | Q69: 427.13 | R69: 58043 | S69: 1195.34 | T69: 154110
C70: その他 | E70: 28.96 | F70: 0 | G70: 27.7 | H70: 0 | I70: 1.17 | J70: 0 | L70: 0 | N70: 0 | P70: 0 | Q70: 32.53 | R70: 0 | S70: 90.36 | T70: 0
B71: 中川村 | C71: 総 数 | E71: 854.02 | F71: 174361 | G71: 347.44 | H71: 57528 | I71: 0 | J71: 0 | K71: 33.65 | L71: 7033 | M71: 0 | N71: 0 | O71: 0 | P71: 0 | Q71: 4678.24 | R71: 888621 | S71: =SUM(S72,S75) -> 5913.35 | T71: =SUM(T72,T75) -> 1127543
C72: 立木地 | D72: 総 数 | E72: 831.68 | F72: 174361 | G72: 334.85 | H72: 57528 | I72: 0 | J72: 0 | K72: 31.01 | L72: 7033 | M72: 0 | N72: 0 | O72: 0 | P72: 0 | Q72: 4497.9 | R72: 888621 | S72: =SUM(S73:S74) -> 5695.44 | T72: =SUM(T73:T74) -> 1127543
D73: 人工林 | E73: 690 | F73: 154196 | G73: 233.94 | H73: 44402 | J73: 0 | K73: 8.25 | L73: 1824 | N73: 0 | P73: 0 | Q73: 2158.44 | R73: 532667 | S73: =E73+G73+I73+K73+M73+O73+Q73 -> 3090.63 | T73: 733089
D74: 天然林 | E74: 141.68 | F74: 20165 | G74: 100.91 | H74: 13126 | J74: 0 | K74: 22.76 | L74: 5209 | N74: 0 | P74: 0 | Q74: 2339.46 | R74: 355954 | S74: 2604.81 | T74: 394454
C75: その他 | E75: 22.34 | F75: 0 | G75: 12.59 | H75: 0 | J75: 0 | K75: 2.64 | L75: 0 | N75: 0 | P75: 0 | Q75: 180.34 | R75: 0 | S75: 217.91 | T75: 0
B76: 宮田村 | C76: 総 数 | E76: 336.27 | F76: 72034 | G76: 773.04 | H76: 183122 | I76: 0 | J76: 0 | K76: 269.67 | L76: 58058 | M76: 0 | N76: 0 | O76: 0 | P76: 0 | Q76: 1392.36 | R76: 325108 | S76: =SUM(S77,S80) -> 2771.34 | T76: =SUM(T77,T80) -> 638322
C77: 立木地 | D77: 総 数 | E77: 331.02 | F77: 72034 | G77: 765.8 | H77: 183122 | I77: 0 | J77: 0 | K77: 256.31 | L77: 58058 | M77: 0 | N77: 0 | O77: 0 | P77: 0 | Q77: 1367.88 | R77: 325108 | S77: =SUM(S78:S79) -> 2721.01 | T77: =SUM(T78:T79) -> 638322
D78: 人工林 | E78: 201.91 | F78: 53733 | G78: 584.92 | H78: 156521 | J78: 0 | K78: 200.34 | L78: 52773 | N78: 0 | P78: 0 | Q78: 1070.51 | R78: 283100 | S78: =E78+G78+I78+K78+M78+O78+Q78 -> 2057.68 | T78: 546127
D79: 天然林 | E79: 129.11 | F79: 18301 | G79: 180.88 | H79: 26601 | J79: 0 | K79: 55.97 | L79: 5285 | N79: 0 | P79: 0 | Q79: 297.37 | R79: 42008 | S79: 663.33 | T79: 92195
C80: その他 | E80: 5.25 | F80: 0 | G80: 7.24 | H80: 0 | J80: 0 | K80: 13.36 | L80: 0 | N80: 0 | P80: 0 | Q80: 24.48 | R80: 0 | S80: 50.33 | T80: 0
B81: 上伊那計 | C81: 総 数 | E81: 23278.96 | F81: 4974240 | G81: 16383.46 | H81: 3584555 | I81: 92.93 | J81: 31307 | K81: 2643.48 | L81: 559640 | M81: 25.61 | N81: 7869 | O81: 0 | P81: 0 | Q81: 48256.21 | R81: 10725353 | S81: =SUM(S82,S85) -> 90680.65 | T81: =SUM(T82,T85) -> 19882964
C82: 立木地 | D82: 総 数 | E82: 22832.17 | F82: 4973248 | G82: 16009.45 | H82: 3583548 | I82: 91.76 | J82: 31307 | K82: 2578.04 | L82: 559640 | M82: 25.55 | N82: 7869 | O82: 0 | P82: 0 | Q82: 47313.06 | R82: 10724361 | S82: =SUM(S83:S84) -> 88850.03 | T82: =SUM(T83:T84) -> 19879973
D83: 人工林 | E83: 16210.21 | F83: 3970919 | G83: 10211.26 | H83: 2649758 | I83: 53.12 | J83: 22359 | K83: 1262.16 | L83: 345036 | M83: 18.52 | N83: 5792 | O83: 0 | P83: 0 | Q83: 30732.82 | R83: 7979295 | S83: =E83+G83+I83+K83+M83+O83+Q83 -> 58488.09 | T83: 14973159
D84: 天然林 | E84: 6621.96 | F84: 1002329 | G84: 5798.19 | H84: 933790 | I84: 38.64 | J84: 8948 | K84: 1315.88 | L84: 214604 | M84: 7.03 | N84: 2077 | O84: 0 | P84: 0 | Q84: 16580.24 | R84: 2745066 | S84: 30361.94 | T84: 4906814
C85: その他 | E85: 446.79 | F85: 992 | G85: 374.01 | H85: 1007 | I85: 1.17 | J85: 0 | K85: 65.44 | L85: 0 | M85: 0.06 | N85: 0 | O85: 0 | P85: 0 | Q85: 943.15 | R85: 992 | S85: 1830.62 | T85: 2991
A86: 南信州 | B86: 飯田市 | C86: 総 数 | E86: 38132.08 | F86: 6798273 | G86: 11226.44 | H86: 1777363 | I86: 0 | J86: 0 | K86: 327.73 | L86: 67905 | M86: 0 | N86: 0 | O86: 0 | P86: 0 | Q86: 9559.19 | R86: 2057928 | S86: =SUM(S87,S90) -> 59245.44 | T86: =SUM(T87,T90) -> 10701469
C87: 立木地 | D87: 総 数 | E87: 36938.61 | F87: 6798273 | G87: 10662.16 | H87: 1777363 | I87: 0 | J87: 0 | K87: 320.24 | L87: 67905 | M87: 0 | N87: 0 | O87: 0 | P87: 0 | Q87: 9360.45 | R87: 2057928 | S87: =SUM(S88:S89) -> 57281.46 | T87: =SUM(T88:T89) -> 10701469
D88: 人工林 | E88: 15848.72 | F88: 4023762 | G88: 3691.55 | H88: 861418 | J88: 0 | K88: 146.46 | L88: 36720 | N88: 0 | P88: 0 | Q88: 5582.92 | R88: 1530581 | S88: =E88+G88+I88+K88+M88+O88+Q88 -> 25269.65 | T88: 6452481
D89: 天然林 | E89: 21089.89 | F89: 2774511 | G89: 6970.61 | H89: 915945 | J89: 0 | K89: 173.78 | L89: 31185 | N89: 0 | P89: 0 | Q89: 3777.53 | R89: 527347 | S89: 32011.81 | T89: 4248988
C90: その他 | E90: 1193.47 | F90: 0 | G90: 564.28 | H90: 0 | J90: 0 | K90: 7.49 | L90: 0 | N90: 0 | P90: 0 | Q90: 198.74 | R90: 0 | S90: 1963.98 | T90: 0
B91: 松川町 | C91: 総 数 | E91: 1633.75 | F91: 336899 | G91: 569.24 | H91: 109755 | I91: 0 | J91: 0 | K91: 387 | L91: 62638 | M91: 0 | N91: 0 | O91: 0 | P91: 0 | Q91: 692.73 | R91: 162837 | S91: =SUM(S92,S95) -> 3282.72 | T91: =SUM(T92,T95) -> 672129
C92: 立木地 | D92: 総 数 | E92: 1574.32 | F92: 336899 | G92: 552.72 | H92: 109755 | I92: 0 | J92: 0 | K92: 374.11 | L92: 62638 | M92: 0 | N92: 0 | O92: 0 | P92: 0 | Q92: 681.26 | R92: 162837 | S92: =SUM(S93:S94) -> 3182.41 | T92: =SUM(T93:T94) -> 672129
D93: 人工林 | E93: 845.68 | F93: 218986 | G93: 187.04 | H93: 43218 | J93: 0 | K93: 87.31 | L93: 21815 | N93: 0 | P93: 0 | Q93: 393.06 | R93: 101913 | S93: =E93+G93+I93+K93+M93+O93+Q93 -> 1513.09 | T93: 385932
D94: 天然林 | E94: 728.64 | F94: 117913 | G94: 365.68 | H94: 66537 | J94: 0 | K94: 286.8 | L94: 40823 | N94: 0 | P94: 0 | Q94: 288.2 | R94: 60924 | S94: 1669.32 | T94: 286197
C95: その他 | E95: 59.43 | F95: 0 | G95: 16.52 | H95: 0 | J95: 0 | K95: 12.89 | L95: 0 | N95: 0 | P95: 0 | Q95: 11.47 | R95: 0 | S95: 100.31 | T95: 0
B96: 高森町 | C96: 総 数 | E96: 1070.77 | F96: 218705 | G96: 1061.61 | H96: 245495 | I96: 0 | J96: 0 | K96: 0 | L96: 0 | M96: 0 | N96: 0 | O96: 0 | P96: 0 | Q96: 218.61 | R96: 50705 | S96: =SUM(S97,S100) -> 2350.99 | T96: =SUM(T97,T100) -> 514905
C97: 立木地 | D97: 総 数 | E97: 1037.22 | F97: 218705 | G97: 1049.77 | H97: 245495 | I97: 0 | J97: 0 | K97: 0 | L97: 0 | M97: 0 | N97: 0 | O97: 0 | P97: 0 | Q97: 214.07 | R97: 50705 | S97: =SUM(S98:S99) -> 2301.06 | T97: =SUM(T98:T99) -> 514905
D98: 人工林 | E98: 620.49 | F98: 159563 | G98: 650.52 | H98: 162407 | J98: 0 | L98: 0 | N98: 0 | P98: 0 | Q98: 152.74 | R98: 36222 | S98: =E98+G98+I98+K98+M98+O98+Q98 -> 1423.75 | T98: 358192
D99: 天然林 | E99: 416.73 | F99: 59142 | G99: 399.25 | H99: 83088 | J99: 0 | L99: 0 | N99: 0 | P99: 0 | Q99: 61.33 | R99: 14483 | S99: 877.31 | T99: 156713
C100: その他 | E100: 33.55 | F100: 0 | G100: 11.84 | H100: 0 | J100: 0 | L100: 0 | N100: 0 | P100: 0 | Q100: 4.54 | R100: 0 | S100: 49.93 | T100: 0
B101: 阿南町 | C101: 総 数 | E101: 9420.21 | F101: 1822145 | G101: 699.01 | H101: 131390 | I101: 0 | J101: 0 | K101: 0 | L101: 0 | M101: 0 | N101: 0 | O101: 0 | P101: 0 | Q101: 2266.27 | R101: 536157 | S101: =SUM(S102,S105) -> 12385.49 | T101: =SUM(T102,T105) -> 2489692
C102: 立木地 | D102: 総 数 | E102: 9252.84 | F102: 1822145 | G102: 687.47 | H102: 131390 | I102: 0 | J102: 0 | K102: 0 | L102: 0 | M102: 0 | N102: 0 | O102: 0 | P102: 0 | Q102: 2231.11 | R102: 536157 | S102: =SUM(S103:S104) -> 12171.42 | T102: =SUM(T103:T104) -> 2489692
D103: 人工林 | E103: 4130.37 | F103: 1121264 | G103: 515.21 | H103: 112697 | J103: 0 | L103: 0 | N103: 0 | P103: 0 | Q103: 1493.79 | R103: 424078 | S103: =E103+G103+I103+K103+M103+O103+Q103 -> 6139.37 | T103: 1658039
D104: 天然林 | E104: 5122.47 | F104: 700881 | G104: 172.26 | H104: 18693 | J104: 0 | L104: 0 | N104: 0 | P104: 0 | Q104: 737.32 | R104: 112079 | S104: 6032.05 | T104: 831653
C105: その他 | E105: 167.37 | F105: 0 | G105: 11.54 | H105: 0 | J105: 0 | L105: 0 | N105: 0 | P105: 0 | Q105: 35.16 | R105: 0 | S105: 214.07 | T105: 0
B106: 阿智村 | C106: 総 数 | E106: 16533.21 | F106: 3134484 | G106: 806 | H106: 143252 | I106: 0 | J106: 0 | K106: 0 | L106: 0 | M106: 0 | N106: 0 | O106: 0 | P106: 0 | Q106: 11221.08 | R106: 2195424 | S106: =SUM(S107,S110) -> 28560.29 | T106: =SUM(T107,T110) -> 5473160
C107: 立木地 | D107: 総 数 | E107: 15984.75 | F107: 3134484 | G107: 775.18 | H107: 143252 | I107: 0 | J107: 0 | K107: 0 | L107: 0 | M107: 0 | N107: 0 | O107: 0 | P107: 0 | Q107: 10870.4 | R107: 2195424 | S107: =SUM(S108:S109) -> 27630.33 | T107: =SUM(T108:T109) -> 5473160
D108: 人工林 | E108: 8372.36 | F108: 2184936 | G108: 600.02 | H108: 124109 | J108: 0 | L108: 0 | N108: 0 | P108: 0 | Q108: 5815.37 | R108: 1547442 | S108: =E108+G108+I108+K108+M108+O108+Q108 -> 14787.75 | T108: 3856487
D109: 天然林 | E109: 7612.39 | F109: 949548 | G109: 175.16 | H109: 19143 | J109: 0 | L109: 0 | N109: 0 | P109: 0 | Q109: 5055.03 | R109: 647982 | S109: 12842.58 | T109: 1616673
C110: その他 | E110: 548.46 | F110: 0 | G110: 30.82 | H110: 0 | J110: 0 | L110: 0 | N110: 0 | P110: 0 | Q110: 350.68 | R110: 0 | S110: 929.96 | T110: 0
B111: 平谷村 | C111: 総 数 | E111: 6996.4 | F111: 1205560 | G111: 260.41 | H111: 47291 | I111: 0 | J111: 0 | K111: 0 | L111: 0 | M111: 0 | N111: 0 | O111: 0 | P111: 0 | Q111: 2471.25 | R111: 591680 | S111: =SUM(S112,S115) -> 9728.06 | T111: =SUM(T112,T115) -> 1844531
C112: 立木地 | D112: 総 数 | E112: 6677.88 | F112: 1204276 | G112: 243.04 | H112: 47291 | I112: 0 | J112: 0 | K112: 0 | L112: 0 | M112: 0 | N112: 0 | O112: 0 | P112: 0 | Q112: 2378.33 | R112: 590396 | S112: =SUM(S113:S114) -> 9299.25 | T112: =SUM(T113:T114) -> 1841963
D113: 人工林 | E113: 3257.35 | F113: 824113 | G113: 226.5 | H113: 45671 | J113: 0 | L113: 0 | N113: 0 | P113: 0 | Q113: 1892.68 | R113: 530124 | S113: =E113+G113+I113+K113+M113+O113+Q113 -> 5376.53 | T113: 1399908
D114: 天然林 | E114: 3420.53 | F114: 380163 | G114: 16.54 | H114: 1620 | J114: 0 | L114: 0 | N114: 0 | P114: 0 | Q114: 485.65 | R114: 60272 | S114: 3922.72 | T114: 442055
C115: その他 | E115: 318.52 | F115: 1284 | G115: 17.37 | H115: 0 | J115: 0 | L115: 0 | N115: 0 | P115: 0 | Q115: 92.92 | R115: 1284 | S115: 428.81 | T115: 2568
A116: 南信州 | B116: 根羽村 | C116: 総 数 | E116: 7289.13 | F116: 2113491 | G116: 528.52 | H116: 122194 | I116: 0 | J116: 0 | K116: 619.62 | L116: 96571 | M116: 0 | N116: 0 | O116: 0 | P116: 0 | Q116: 7814.01 | R116: 2234862 | S116: =SUM(S117,S120) -> 16251.28 | T116: =SUM(T117,T120) -> 4567118
C117: 立木地 | D117: 総 数 | E117: 7202.43 | F117: 2113491 | G117: 517.47 | H117: 122194 | I117: 0 | J117: 0 | K117: 613.58 | L117: 96571 | M117: 0 | N117: 0 | O117: 0 | P117: 0 | Q117: 7716.54 | R117: 2234862 | S117: =SUM(S118:S119) -> 16050.02 | T117: =SUM(T118:T119) -> 4567118
D118: 人工林 | E118: 5604.53 | F118: 1912559 | G118: 445.78 | H118: 112134 | J118: 0 | K118: 113.94 | L118: 32459 | N118: 0 | P118: 0 | Q118: 6046.95 | R118: 2023870 | S118: =E118+G118+I118+K118+M118+O118+Q118 -> 12211.2 | T118: 4081022
D119: 天然林 | E119: 1597.9 | F119: 200932 | G119: 71.69 | H119: 10060 | J119: 0 | K119: 499.64 | L119: 64112 | N119: 0 | P119: 0 | Q119: 1669.59 | R119: 210992 | S119: 3838.82 | T119: 486096
C120: その他 | E120: 86.7 | F120: 0 | G120: 11.05 | H120: 0 | J120: 0 | K120: 6.04 | L120: 0 | N120: 0 | P120: 0 | Q120: 97.47 | R120: 0 | S120: 201.26 | T120: 0
B121: 下條村 | C121: 総 数 | E121: 2044.7 | F121: 386045 | G121: 279.56 | H121: 52911 | I121: 0 | J121: 0 | K121: 0 | L121: 0 | M121: 0 | N121: 0 | O121: 0 | P121: 0 | Q121: 603.54 | R121: 129470 | S121: =SUM(S122,S125) -> 2927.8 | T121: =SUM(T122,T125) -> 568426
C122: 立木地 | D122: 総 数 | E122: 1988.75 | F122: 386045 | G122: 264.97 | H122: 52911 | I122: 0 | J122: 0 | K122: 0 | L122: 0 | M122: 0 | N122: 0 | O122: 0 | P122: 0 | Q122: 594.87 | R122: 129470 | S122: =SUM(S123:S124) -> 2848.59 | T122: =SUM(T123:T124) -> 568426
D123: 人工林 | E123: 787.35 | F123: 208409 | G123: 193.06 | H123: 44684 | J123: 0 | L123: 0 | N123: 0 | P123: 0 | Q123: 314 | R123: 82775 | S123: =E123+G123+I123+K123+M123+O123+Q123 -> 1294.41 | T123: 335868
D124: 天然林 | E124: 1201.4 | F124: 177636 | G124: 71.91 | H124: 8227 | J124: 0 | L124: 0 | N124: 0 | P124: 0 | Q124: 280.87 | R124: 46695 | S124: 1554.18 | T124: 232558
C125: その他 | E125: 55.95 | F125: 0 | G125: 14.59 | H125: 0 | J125: 0 | L125: 0 | N125: 0 | P125: 0 | Q125: 8.67 | R125: 0 | S125: 79.21 | T125: 0
B126: 売木村 | C126: 総 数 | E126: 3308 | F126: 764232 | G126: 162.16 | H126: 30800 | I126: 0 | J126: 0 | K126: 334.78 | L126: 76706 | M126: 0 | N126: 0 | O126: 0 | P126: 0 | Q126: 3307.95 | R126: 764226 | S126: =SUM(S127,S130) -> 7112.89 | T126: =SUM(T127,T130) -> 1635964
C127: 立木地 | D127: 総 数 | E127: 3274.83 | F127: 764232 | G127: 156.76 | H127: 30800 | I127: 0 | J127: 0 | K127: 332.42 | L127: 76706 | M127: 0 | N127: 0 | O127: 0 | P127: 0 | Q127: 3274.78 | R127: 764226 | S127: =SUM(S128:S129) -> 7038.79 | T127: =SUM(T128:T129) -> 1635964
D128: 人工林 | E128: 2391.55 | F128: 637694 | G128: 150.96 | H128: 30108 | J128: 0 | K128: 207.2 | L128: 57251 | N128: 0 | P128: 0 | Q128: 2391.55 | R128: 637694 | S128: =E128+G128+I128+K128+M128+O128+Q128 -> 5141.26 | T128: 1362747
D129: 天然林 | E129: 883.28 | F129: 126538 | G129: 5.8 | H129: 692 | J129: 0 | K129: 125.22 | L129: 19455 | N129: 0 | P129: 0 | Q129: 883.23 | R129: 126532 | S129: 1897.53 | T129: 273217
C130: その他 | E130: 33.17 | F130: 0 | G130: 5.4 | H130: 0 | J130: 0 | K130: 2.36 | L130: 0 | N130: 0 | P130: 0 | Q130: 33.17 | R130: 0 | S130: 74.1 | T130: 0
B131: 天龍村 | C131: 総 数 | E131: 8478.06 | F131: 1882909 | G131: 905.81 | H131: 175685 | I131: 0 | J131: 0 | K131: 811.36 | L131: 198349 | M131: 0 | N131: 0 | O131: 0 | P131: 0 | Q131: 3239.98 | R131: 818743 | S131: =SUM(S132,S135) -> 13435.21 | T131: =SUM(T132,T135) -> 3075686
C132: 立木地 | D132: 総 数 | E132: 8251.89 | F132: 1882909 | G132: 887.6 | H132: 175685 | I132: 0 | J132: 0 | K132: 793.04 | L132: 198349 | M132: 0 | N132: 0 | O132: 0 | P132: 0 | Q132: 3168.82 | R132: 818743 | S132: =SUM(S133:S134) -> 13101.35 | T132: =SUM(T133:T134) -> 3075686
D133: 人工林 | E133: 4045.94 | F133: 1344326 | G133: 560.92 | H133: 135477 | J133: 0 | K133: 404.52 | L133: 146883 | N133: 0 | P133: 0 | Q133: 2060.89 | R133: 683596 | S133: =E133+G133+I133+K133+M133+O133+Q133 -> 7072.27 | T133: 2310282
D134: 天然林 | E134: 4205.95 | F134: 538583 | G134: 326.68 | H134: 40208 | J134: 0 | K134: 388.52 | L134: 51466 | N134: 0 | P134: 0 | Q134: 1107.93 | R134: 135147 | S134: 6029.08 | T134: 765404
C135: その他 | E135: 226.17 | F135: 0 | G135: 18.21 | H135: 0 | J135: 0 | K135: 18.32 | L135: 0 | N135: 0 | P135: 0 | Q135: 71.16 | R135: 0 | S135: 333.86 | T135: 0
B136: 泰阜村 | C136: 総 数 | E136: 4993.46 | F136: 815647 | G136: 606.25 | H136: 102065 | I136: 0 | J136: 0 | K136: 0 | L136: 0 | M136: 0 | N136: 0 | O136: 0 | P136: 0 | Q136: 3170.59 | R136: 541379 | S136: =SUM(S137,S140) -> 8770.3 | T136: =SUM(T137,T140) -> 1459091
C137: 立木地 | D137: 総 数 | E137: 4931.56 | F137: 815647 | G137: 590.76 | H137: 102065 | I137: 0 | J137: 0 | K137: 0 | L137: 0 | M137: 0 | N137: 0 | O137: 0 | P137: 0 | Q137: 3124.7 | R137: 541379 | S137: =SUM(S138:S139) -> 8647.02 | T137: =SUM(T138:T139) -> 1459091
D138: 人工林 | E138: 1448.34 | F138: 354277 | G138: 287.61 | H138: 63888 | J138: 0 | L138: 0 | N138: 0 | P138: 0 | Q138: 1246.7 | R138: 294782 | S138: =E138+G138+I138+K138+M138+O138+Q138 -> 2982.65 | T138: 712947
D139: 天然林 | E139: 3483.22 | F139: 461370 | G139: 303.15 | H139: 38177 | J139: 0 | L139: 0 | N139: 0 | P139: 0 | Q139: 1878 | R139: 246597 | S139: 5664.37 | T139: 746144
C140: その他 | E140: 61.9 | F140: 0 | G140: 15.49 | H140: 0 | J140: 0 | L140: 0 | N140: 0 | P140: 0 | Q140: 45.89 | R140: 0 | S140: 123.28 | T140: 0
B141: 喬木村 | C141: 総 数 | E141: 3145.27 | F141: 616433 | G141: 472.2 | H141: 96308 | I141: 0 | J141: 0 | K141: 142.68 | L141: 27077 | M141: 0 | N141: 0 | O141: 0 | P141: 0 | Q141: 116.13 | R141: 24700 | S141: =SUM(S142,S145) -> 3876.28 | T141: =SUM(T142,T145) -> 764518
C142: 立木地 | D142: 総 数 | E142: 3071.45 | F142: 616433 | G142: 451.76 | H142: 96308 | I142: 0 | J142: 0 | K142: 138.89 | L142: 27077 | M142: 0 | N142: 0 | O142: 0 | P142: 0 | Q142: 113.86 | R142: 24700 | S142: =SUM(S143:S144) -> 3775.96 | T142: =SUM(T143:T144) -> 764518
D143: 人工林 | E143: 1586.05 | F143: 400287 | G143: 230.68 | H143: 59792 | J143: 0 | K143: 78.35 | L143: 17901 | N143: 0 | P143: 0 | Q143: 51.29 | R143: 11601 | S143: =E143+G143+I143+K143+M143+O143+Q143 -> 1946.37 | T143: 489581
D144: 天然林 | E144: 1485.4 | F144: 216146 | G144: 221.08 | H144: 36516 | J144: 0 | K144: 60.54 | L144: 9176 | N144: 0 | P144: 0 | Q144: 62.57 | R144: 13099 | S144: 1829.59 | T144: 274937
C145: その他 | E145: 73.82 | F145: 0 | G145: 20.44 | H145: 0 | J145: 0 | K145: 3.79 | L145: 0 | N145: 0 | P145: 0 | Q145: 2.27 | R145: 0 | S145: 100.32 | T145: 0
B146: 豊丘村 | C146: 総 数 | E146: 4568.79 | F146: 934832 | G146: 545.37 | H146: 106894 | I146: 0 | J146: 0 | K146: 0 | L146: 0 | M146: 0 | N146: 0 | O146: 0 | P146: 0 | Q146: 129.39 | R146: 31778 | S146: =SUM(S147,S150) -> 5243.55 | T146: =SUM(T147,T150) -> 1073504
C147: 立木地 | D147: 総 数 | E147: 4457.01 | F147: 934832 | G147: 527.92 | H147: 106894 | I147: 0 | J147: 0 | K147: 0 | L147: 0 | M147: 0 | N147: 0 | O147: 0 | P147: 0 | Q147: 128.17 | R147: 31778 | S147: =SUM(S148:S149) -> 5113.1 | T147: =SUM(T148:T149) -> 1073504
D148: 人工林 | E148: 1928.32 | F148: 509901 | G148: 191.25 | H148: 48161 | J148: 0 | L148: 0 | N148: 0 | P148: 0 | Q148: 65.26 | R148: 17812 | S148: =E148+G148+I148+K148+M148+O148+Q148 -> 2184.83 | T148: 575874
D149: 天然林 | E149: 2528.69 | F149: 424931 | G149: 336.67 | H149: 58733 | J149: 0 | L149: 0 | N149: 0 | P149: 0 | Q149: 62.91 | R149: 13966 | S149: 2928.27 | T149: 497630
C150: その他 | E150: 111.78 | F150: 0 | G150: 17.45 | H150: 0 | J150: 0 | L150: 0 | N150: 0 | P150: 0 | Q150: 1.22 | R150: 0 | S150: 130.45 | T150: 0
B151: 大鹿村 | C151: 総 数 | E151: 11583.12 | F151: 2161148 | G151: 2825.66 | H151: 576365 | I151: 0 | J151: 0 | K151: 0 | L151: 0 | M151: 0 | N151: 0 | O151: 0 | P151: 0 | Q151: 1229.39 | R151: 276985 | S151: =SUM(S152,S155) -> 15638.17 | T151: =SUM(T152,T155) -> 3014498
C152: 立木地 | D152: 総 数 | E152: 11038.86 | F152: 2161148 | G152: 2692.13 | H152: 576365 | I152: 0 | J152: 0 | K152: 0 | L152: 0 | M152: 0 | N152: 0 | O152: 0 | P152: 0 | Q152: 1192.27 | R152: 276985 | S152: =SUM(S153:S154) -> 14923.26 | T152: =SUM(T153:T154) -> 3014498
D153: 人工林 | E153: 5242.08 | F153: 1404770 | G153: 1657.83 | H153: 440048 | J153: 0 | L153: 0 | N153: 0 | P153: 0 | Q153: 906.55 | R153: 241792 | S153: =E153+G153+I153+K153+M153+O153+Q153 -> 7806.46 | T153: 2086610
D154: 天然林 | E154: 5796.78 | F154: 756378 | G154: 1034.3 | H154: 136317 | J154: 0 | L154: 0 | N154: 0 | P154: 0 | Q154: 285.72 | R154: 35193 | S154: 7116.8 | T154: 927888
C155: その他 | E155: 544.26 | F155: 0 | G155: 133.53 | H155: 0 | J155: 0 | L155: 0 | N155: 0 | P155: 0 | Q155: 37.12 | R155: 0 | S155: 714.91 | T155: 0
B156: 南信州計 | C156: 総 数 | E156: 119196.95 | F156: 23190803 | G156: 20948.24 | H156: 3717768 | I156: 0 | J156: 0 | K156: 2623.17 | L156: 529246 | M156: 0 | N156: 0 | O156: 0 | P156: 0 | Q156: 46040.11 | R156: 10416874 | S156: =SUM(S157,S160) -> 188808.47 | T156: =SUM(T157,T160) -> 37854691
C157: 立木地 | D157: 総 数 | E157: 115682.4 | F157: 23189519 | G157: 20059.71 | H157: 3717768 | I157: 0 | J157: 0 | K157: 2572.28 | L157: 529246 | M157: 0 | N157: 0 | O157: 0 | P157: 0 | Q157: 45049.63 | R157: 10415590 | S157: =SUM(S158:S159) -> 183364.02 | T157: =SUM(T158:T159) -> 37852123
D158: 人工林 | E158: 56109.13 | F158: 15304847 | G158: 9588.93 | H158: 2283812 | I158: 0 | J158: 0 | K158: 1037.78 | L158: 313029 | M158: 0 | N158: 0 | O158: 0 | P158: 0 | Q158: 28413.75 | R158: 8164282 | S158: =E158+G158+I158+K158+M158+O158+Q158 -> 95149.59 | T158: 26065970
D159: 天然林 | E159: 59573.27 | F159: 7884672 | G159: 10470.78 | H159: 1433956 | I159: 0 | J159: 0 | K159: 1534.5 | L159: 216217 | M159: 0 | N159: 0 | O159: 0 | P159: 0 | Q159: 16635.88 | R159: 2251308 | S159: 88214.43 | T159: 11786153
C160: その他 | E160: 3514.55 | F160: 1284 | G160: 888.53 | H160: 0 | I160: 0 | J160: 0 | K160: 50.89 | L160: 0 | M160: 0 | N160: 0 | O160: 0 | P160: 0 | Q160: 990.48 | R160: 1284 | S160: 5444.45 | T160: 2568
A161: 計画区計 | C161: 総 数 | E161: 159367.57 | F161: 31628279 | G161: 54321.18 | H161: 11193258 | I161: 7026.12 | J161: 1456445 | K161: 7822.52 | L161: 1497260 | M161: 350.3 | N161: 45563 | O161: 0 | P161: 0 | Q161: 108414.93 | R161: 24163234 | S161: =SUM(S162,S165) -> 337302.62 | T161: =SUM(T162,T165) -> 69984039
C162: 立木地 | D162: 総 数 | E162: 154785.04 | F162: 31625774 | G162: 52514.69 | H162: 11192251 | I162: 6715.39 | J162: 1456445 | K162: 6956.02 | L162: 1497260 | M162: 291.04 | N162: 45563 | O162: 0 | P162: 0 | Q162: 105989.68 | R162: 24160958 | S162: =SUM(S163:S164) -> 327251.86 | T162: =SUM(T163:T164) -> 69978251
D163: 人工林 | E163: 81560.36 | F163: 21690477 | G163: 30052.23 | H163: 7716466 | I163: 3420.72 | J163: 962005 | K163: 3360.21 | L163: 945028 | M163: 66.72 | N163: 15230 | O163: 0 | P163: 0 | Q163: 67309.46 | R163: 18313456 | S163: =E163+G163+I163+K163+M163+O163+Q163 -> 185769.7 | T163: 49642662
D164: 天然林 | E164: 73224.68 | F164: 9935297 | G164: 22462.46 | H164: 3475785 | I164: 3294.67 | J164: 494440 | K164: 3595.81 | L164: 552232 | M164: 224.32 | N164: 30333 | O164: 0 | P164: 0 | Q164: 38680.22 | R164: 5847502 | S164: 141482.16 | T164: 20335589
C165: その他 | E165: 4582.53 | F165: 2505 | G165: 1806.49 | H165: 1007 | I165: 310.73 | J165: 0 | K165: 866.5 | L165: 0 | M165: 59.26 | N165: 0 | O165: 0 | P165: 0 | Q165: 2425.25 | R165: 2276 | S165: 10050.76 | T165: 5788
Q166: =Q161+O161+M161+K161+I161+G161+E161 -> 337302.62 | R166: =R161+P161+N161+L161+J161+H161+F161 -> 69984039

Sheet 木曽谷
A1: 第10-1表 市町村別・公益的機能別施業森林等区分別ゾーニング別・資源表
R2: （単位 面積：ha 蓄積：m3）
A3: 地域振興局 | B3: 市町村名 | C3: 区 分 | E3: 公益的機能別施業森林等区分別
E4: 水かん | G4: 山災/土壌 | I4: 快適環境 | K4: 保健 | M4: 文化 | O4: 独自 | Q4: 木材 | S4: 総数
E5: 面積 | F5: 蓄積 | G5: 面積 | H5: 蓄積 | I5: 面積 | J5: 蓄積 | K5: 面積 | L5: 蓄積 | M5: 面積 | N5: 蓄積 | O5: 面積 | P5: 蓄積 | Q5: 面積 | R5: 蓄積 | S5: 面積 | T5: 蓄積
A6: 木曽 | B6: 上松町 | C6: 総 数 | E6: 2227.69 | F6: 385104 | G6: 2882.14 | H6: 489399 | I6: 0 | J6: 0 | K6: 32.08 | L6: 4993 | M6: 2.13 | N6: 573 | O6: 0 | P6: 0 | Q6: 4921.86 | R6: 843291 | S6: =SUM(S7,S10) -> 10065.9 | T6: =SUM(T7,T10) -> 1723360
C7: 立木地 | D7: 総 数 | E7: 2221.99 | F7: 385104 | G7: 2852.05 | H7: 489399 | I7: 0 | J7: 0 | K7: 30.5 | L7: 4993 | M7: 2.13 | N7: 573 | O7: 0 | P7: 0 | Q7: 4886.55 | R7: 843291 | S7: =SUM(S8:S9) -> 9993.22 | T7: =SUM(T8:T9) -> 1723360
D8: 人工林 | E8: 774.07 | F8: 187290 | G8: 907.78 | H8: 236360 | J8: 0 | K8: 9.89 | L8: 2619 | M8: 0.79 | N8: 299 | P8: 0 | Q8: 1633.49 | R8: 411826 | S8: =E8+G8+I8+K8+M8+O8+Q8 -> 3326.02 | T8: 838394
D9: 天然林 | E9: 1447.92 | F9: 197814 | G9: 1944.27 | H9: 253039 | J9: 0 | K9: 20.61 | L9: 2374 | M9: 1.34 | N9: 274 | P9: 0 | Q9: 3253.06 | R9: 431465 | S9: 6667.2 | T9: 884966
C10: その他 | E10: 5.7 | F10: 0 | G10: 30.09 | H10: 0 | J10: 0 | K10: 1.58 | L10: 0 | N10: 0 | P10: 0 | Q10: 35.31 | R10: 0 | S10: 72.68 | T10: 0
B11: 南木曽町 | C11: 総 数 | E11: 1029.7 | F11: 218558 | G11: 5603.83 | H11: 1144263 | I11: 0 | J11: 0 | K11: 0 | L11: 0 | M11: 0 | N11: 0 | O11: 0 | P11: 0 | Q11: 3566.77 | R11: 744362 | S11: =SUM(S12,S15) -> 10200.3 | T11: =SUM(T12,T15) -> 2107183
C12: 立木地 | D12: 総 数 | E12: 1014.88 | F12: 218558 | G12: 5508.81 | H12: 1144263 | I12: 0 | J12: 0 | K12: 0 | L12: 0 | M12: 0 | N12: 0 | O12: 0 | P12: 0 | Q12: 3521.96 | R12: 744362 | S12: =SUM(S13:S14) -> 10045.65 | T12: =SUM(T13:T14) -> 2107183
D13: 人工林 | E13: 577.46 | F13: 164433 | G13: 2910.18 | H13: 801282 | J13: 0 | L13: 0 | N13: 0 | P13: 0 | Q13: 1918.42 | R13: 529013 | S13: =E13+G13+I13+K13+M13+O13+Q13 -> 5406.06 | T13: 1494728
D14: 天然林 | E14: 437.42 | F14: 54125 | G14: 2598.63 | H14: 342981 | J14: 0 | L14: 0 | N14: 0 | P14: 0 | Q14: 1603.54 | R14: 215349 | S14: 4639.59 | T14: 612455
C15: その他 | E15: 14.82 | F15: 0 | G15: 95.02 | H15: 0 | J15: 0 | L15: 0 | N15: 0 | P15: 0 | Q15: 44.81 | R15: 0 | S15: 154.65 | T15: 0
B16: 木祖村 | C16: 総 数 | E16: 1470.48 | F16: 356778 | G16: 3934.88 | H16: 932507 | I16: 0 | J16: 0 | K16: 44.13 | L16: 6961 | M16: 0 | N16: 0 | O16: 0 | P16: 0 | Q16: 3984.73 | R16: 951985 | S16: =SUM(S17,S20) -> 9434.22 | T16: =SUM(T17,T20) -> 2248231
C17: 立木地 | D17: 総 数 | E17: 1465.82 | F17: 356778 | G17: 3919.73 | H17: 932507 | I17: 0 | J17: 0 | K17: 44.13 | L17: 6961 | M17: 0 | N17: 0 | O17: 0 | P17: 0 | Q17: 3969.72 | R17: 951985 | S17: =SUM(S18:S19) -> 9399.4 | T17: =SUM(T18:T19) -> 2248231
D18: 人工林 | E18: 1099.41 | F18: 303859 | G18: 2814.93 | H18: 772282 | J18: 0 | K18: 12.08 | L18: 2959 | N18: 0 | P18: 0 | Q18: 3005.02 | R18: 813673 | S18: =E18+G18+I18+K18+M18+O18+Q18 -> 6931.44 | T18: 1892773
D19: 天然林 | E19: 366.41 | F19: 52919 | G19: 1104.8 | H19: 160225 | J19: 0 | K19: 32.05 | L19: 4002 | N19: 0 | P19: 0 | Q19: 964.7 | R19: 138312 | S19: 2467.96 | T19: 355458
C20: その他 | E20: 4.66 | F20: 0 | G20: 15.15 | H20: 0 | J20: 0 | L20: 0 | N20: 0 | P20: 0 | Q20: 15.01 | R20: 0 | S20: 34.82 | T20: 0
B21: 王滝村 | C21: 総 数 | E21: 166.54 | F21: 33288 | G21: 2277.75 | H21: 422912 | I21: 0 | J21: 0 | K21: 422.43 | L21: 69748 | M21: 0 | N21: 0 | O21: 7.86 | P21: 1008 | Q21: 3682.56 | R21: 693270 | S21: =SUM(S22,S25) -> 6557.14 | T21: =SUM(T22,T25) -> 1220226
C22: 立木地 | D22: 総 数 | E22: 166.29 | F22: 33288 | G22: 2268.08 | H22: 422912 | I22: 0 | J22: 0 | K22: 421.64 | L22: 69748 | M22: 0 | N22: 0 | O22: 7.86 | P22: 1008 | Q22: 3669.13 | R22: 693270 | S22: =SUM(S23:S24) -> 6533 | T22: =SUM(T23:T24) -> 1220226
D23: 人工林 | E23: 97.14 | F23: 24817 | G23: 967.3 | H23: 251311 | J23: 0 | K23: 122.31 | L23: 34612 | N23: 0 | P23: 0 | Q23: 1616 | R23: 424664 | S23: =E23+G23+I23+K23+M23+O23+Q23 -> 2802.75 | T23: 735404
D24: 天然林 | E24: 69.15 | F24: 8471 | G24: 1300.78 | H24: 171601 | J24: 0 | K24: 299.33 | L24: 35136 | N24: 0 | O24: 7.86 | P24: 1008 | Q24: 2053.13 | R24: 268606 | S24: 3730.25 | T24: 484822
C25: その他 | E25: 0.25 | F25: 0 | G25: 9.67 | H25: 0 | J25: 0 | K25: 0.79 | L25: 0 | N25: 0 | P25: 0 | Q25: 13.43 | R25: 0 | S25: 24.14 | T25: 0
B26: 大桑村 | C26: 総 数 | E26: 1305.41 | F26: 243851 | G26: 3575.81 | H26: 689124 | I26: 0 | J26: 0 | K26: 173.09 | L26: 33047 | M26: 35.46 | N26: 8679 | O26: 0 | P26: 0 | Q26: 1134.1 | R26: 225885 | S26: =SUM(S27,S30) -> 6223.87 | T26: =SUM(T27,T30) -> 1200586
C27: 立木地 | D27: 総 数 | E27: 1273.83 | F27: 243851 | G27: 3535.98 | H27: 689124 | I27: 0 | J27: 0 | K27: 168.31 | L27: 33047 | M27: 35.41 | N27: 8679 | O27: 0 | P27: 0 | Q27: 1113.19 | R27: 225885 | S27: =SUM(S28:S29) -> 6126.72 | T27: =SUM(T28:T29) -> 1200586
D28: 人工林 | E28: 921.07 | F28: 203806 | G28: 1933.92 | H28: 484461 | J28: 0 | K28: 97.64 | L28: 23242 | M28: 21.01 | N28: 6507 | P28: 0 | Q28: 613.62 | R28: 157658 | S28: =E28+G28+I28+K28+M28+O28+Q28 -> 3587.26 | T28: 875674
D29: 天然林 | E29: 352.76 | F29: 40045 | G29: 1602.06 | H29: 204663 | J29: 0 | K29: 70.67 | L29: 9805 | M29: 14.4 | N29: 2172 | P29: 0 | Q29: 499.57 | R29: 68227 | S29: 2539.46 | T29: 324912
C30: その他 | E30: 31.58 | F30: 0 | G30: 39.83 | H30: 0 | J30: 0 | K30: 4.78 | L30: 0 | M30: 0.05 | N30: 0 | P30: 0 | Q30: 20.91 | R30: 0 | S30: 97.15 | T30: 0
B31: 木曽町 | C31: 総 数 | E31: 4268.31 | F31: 730474 | G31: 22840.69 | H31: 4620435 | I31: 0 | J31: 0 | K31: 18.63 | L31: 4283 | M31: 6.25 | N31: 1556 | O31: 0 | P31: 0 | Q31: 23354.65 | R31: 4726357 | S31: =SUM(S32,S35) -> 50488.53 | T31: =SUM(T32,T35) -> 10083105
C32: 立木地 | D32: 総 数 | E32: 4253.28 | F32: 730474 | G32: 22694.12 | H32: 4620429 | I32: 0 | J32: 0 | K32: 18.63 | L32: 4283 | M32: 6.25 | N32: 1556 | O32: 0 | P32: 0 | Q32: 23206.34 | R32: 4726351 | S32: =SUM(S33:S34) -> 50178.62 | T32: =SUM(T33:T34) -> 10083093
D33: 人工林 | E33: 1536.72 | F33: 405140 | G33: 11153.66 | H33: 2981340 | J33: 0 | K33: 8.67 | L33: 2123 | M33: 4.08 | N33: 1294 | P33: 0 | Q33: 11311.43 | R33: 3027517 | S33: =E33+G33+I33+K33+M33+O33+Q33 -> 24014.56 | T33: 6417414
D34: 天然林 | E34: 2716.56 | F34: 325334 | G34: 11540.46 | H34: 1639089 | J34: 0 | K34: 9.96 | L34: 2160 | M34: 2.17 | N34: 262 | P34: 0 | Q34: 11894.91 | R34: 1698834 | S34: 26164.06 | T34: 3665679
C35: その他 | E35: 15.03 | F35: 0 | G35: 146.57 | H35: 6 | J35: 0 | L35: 0 | N35: 0 | P35: 0 | Q35: 148.31 | R35: 6 | S35: 309.91 | T35: 12
B36: 木曽計 | C36: 総 数 | E36: 10468.13 | F36: 1968053 | G36: 41115.1 | H36: 8298640 | I36: 0 | J36: 0 | K36: 690.36 | L36: 119032 | M36: 43.84 | N36: 10808 | O36: 7.86 | P36: 1008 | Q36: 40644.67 | R36: 8185150 | S36: =SUM(S37,S40) -> 92969.96 | T36: =SUM(T37,T40) -> 18582691
C37: 立木地 | D37: 総 数 | E37: 10396.09 | F37: 1968053 | G37: 40778.77 | H37: 8298634 | I37: 0 | J37: 0 | K37: 683.21 | L37: 119032 | M37: 43.79 | N37: 10808 | O37: 7.86 | P37: 1008 | Q37: 40366.89 | R37: 8185144 | S37: =SUM(S38:S39) -> 92276.61 | T37: =SUM(T38:T39) -> 18582679
D38: 人工林 | E38: 5005.87 | F38: 1289345 | G38: 20687.77 | H38: 5527036 | I38: 0 | J38: 0 | K38: 250.59 | L38: 65555 | M38: 25.88 | N38: 8100 | O38: 0 | P38: 0 | Q38: 20097.98 | R38: 5364351 | S38: =E38+G38+I38+K38+M38+O38+Q38 -> 46068.09 | T38: 12254387
D39: 天然林 | E39: 5390.22 | F39: 678708 | G39: 20091 | H39: 2771598 | I39: 0 | J39: 0 | K39: 432.62 | L39: 53477 | M39: 17.91 | N39: 2708 | O39: 7.86 | P39: 1008 | Q39: 20268.91 | R39: 2820793 | S39: 46208.52 | T39: 6328292
C40: その他 | E40: 72.04 | F40: 0 | G40: 336.33 | H40: 6 | I40: 0 | J40: 0 | K40: 7.15 | L40: 0 | M40: 0.05 | N40: 0 | O40: 0 | P40: 0 | Q40: 277.78 | R40: 6 | S40: 693.35 | T40: 12
A41: 計画区計 | C41: 総 数 | E41: 10468.13 | F41: 1968053 | G41: 41115.1 | H41: 8298640 | I41: 0 | J41: 0 | K41: 690.36 | L41: 119032 | M41: 43.84 | N41: 10808 | O41: 7.86 | P41: 1008 | Q41: 40644.67 | R41: 8185150 | S41: =SUM(S42,S45) -> 92969.96 | T41: =SUM(T42,T45) -> 18582691
C42: 立木地 | D42: 総 数 | E42: 10396.09 | F42: 1968053 | G42: 40778.77 | H42: 8298634 | I42: 0 | J42: 0 | K42: 683.21 | L42: 119032 | M42: 43.79 | N42: 10808 | O42: 7.86 | P42: 1008 | Q42: 40366.89 | R42: 8185144 | S42: =SUM(S43:S44) -> 92276.61 | T42: =SUM(T43:T44) -> 18582679
D43: 人工林 | E43: 5005.87 | F43: 1289345 | G43: 20687.77 | H43: 5527036 | I43: 0 | J43: 0 | K43: 250.59 | L43: 65555 | M43: 25.88 | N43: 8100 | O43: 0 | P43: 0 | Q43: 20097.98 | R43: 5364351 | S43: =E43+G43+I43+K43+M43+O43+Q43 -> 46068.09 | T43: 12254387
D44: 天然林 | E44: 5390.22 | F44: 678708 | G44: 20091 | H44: 2771598 | I44: 0 | J44: 0 | K44: 432.62 | L44: 53477 | M44: 17.91 | N44: 2708 | O44: 7.86 | P44: 1008 | Q44: 20268.91 | R44: 2820793 | S44: 46208.52 | T44: 6328292
C45: その他 | E45: 72.04 | F45: 0 | G45: 336.33 | H45: 6 | I45: 0 | J45: 0 | K45: 7.15 | L45: 0 | M45: 0.05 | N45: 0 | O45: 0 | P45: 0 | Q45: 277.78 | R45: 6 | S45: 693.35 | T45: 12
Q46: =Q41+O41+M41+K41+I41+G41+E41 -> 92969.96 | R46: =R41+P41+N41+L41+J41+H41+F41 -> 18582691

Sheet 中部山岳
A1: 第10-1表 市町村別・公益的機能別施業森林等区分別ゾーニング別・資源表
R2: （単位 面積：ha 蓄積：m3）
A3: 地域振興局 | B3: 市町村名 | C3: 区 分 | E3: 公益的機能別施業森林等区分別
E4: 水かん | G4: 山災/土壌 | I4: 快適環境 | K4: 保健 | M4: 文化 | O4: 独自 | Q4: 木材 | S4: 総数
E5: 面積 | F5: 蓄積 | G5: 面積 | H5: 蓄積 | I5: 面積 | J5: 蓄積 | K5: 面積 | L5: 蓄積 | M5: 面積 | N5: 蓄積 | O5: 面積 | P5: 蓄積 | Q5: 面積 | R5: 蓄積 | S5: 面積 | T5: 蓄積
A6: 松本 | B6: 松本市 | C6: 総 数 | E6: 21491.3 | F6: 3701762 | G6: 9820.43 | H6: 1696557 | I6: 0 | J6: 0 | K6: 2408.38 | L6: 359770 | M6: 81.43 | N6: 15337 | O6: 0 | P6: 0 | Q6: 20092.33 | R6: 3800881 | S6: =SUM(S7,S10) -> 53893.87 | T6: =SUM(T7,T10) -> 9574307
C7: 立木地 | D7: 総 数 | E7: 21055.88 | F7: 3701762 | G7: 9545.43 | H7: 1696557 | I7: 0 | J7: 0 | K7: 2293.21 | L7: 359770 | M7: 80.64 | N7: 15297 | O7: 0 | P7: 0 | Q7: 19655.45 | R7: 3800881 | S7: =SUM(S8:S9) -> 52630.61 | T7: =SUM(T8:T9) -> 9574267
D8: 人工林 | E8: 10888.8 | F8: 2446849 | G8: 4542.98 | H8: 1036418 | J8: 0 | K8: 813.53 | L8: 182730 | M8: 32.22 | N8: 8084 | P8: 0 | Q8: 12147.07 | R8: 2825132 | S8: =E8+G8+I8+K8+M8+O8+Q8 -> 28424.6 | T8: 6499213
D9: 天然林 | E9: 10167.08 | F9: 1254913 | G9: 5002.45 | H9: 660139 | J9: 0 | K9: 1479.68 | L9: 177040 | M9: 48.42 | N9: 7213 | P9: 0 | Q9: 7508.38 | R9: 975749 | S9: 24206.01 | T9: 3075054
C10: その他 | E10: 435.42 | F10: 0 | G10: 275 | H10: 0 | J10: 0 | K10: 115.17 | L10: 0 | M10: 0.79 | N10: 40 | P10: 0 | Q10: 436.88 | R10: 0 | S10: 1263.26 | T10: 40
B11: 塩尻市 | C11: 総 数 | E11: 11457.91 | F11: 2413693 | G11: 711.86 | H11: 136162 | I11: 4997.29 | J11: 1059193 | K11: 90.44 | L11: 17119 | M11: 0 | N11: 0 | O11: 0 | P11: 0 | Q11: 13027.03 | R11: 2992876 | S11: =SUM(S12,S15) -> 30284.53 | T11: =SUM(T12,T15) -> 6619043
C12: 立木地 | D12: 総 数 | E12: 11254.16 | F12: 2413693 | G12: 708.69 | H12: 136162 | I12: 4915.71 | J12: 1059193 | K12: 88.34 | L12: 17119 | M12: 0 | N12: 0 | O12: 0 | P12: 0 | Q12: 12902.78 | R12: 2992876 | S12: =SUM(S13:S14) -> 29869.68 | T12: =SUM(T13:T14) -> 6619043
D13: 人工林 | E13: 7040.43 | F13: 1711151 | G13: 579.04 | H13: 117205 | I13: 2760.69 | J13: 771089 | K13: 72.8 | L13: 14908 | N13: 0 | P13: 0 | Q13: 9482.58 | R13: 2357298 | S13: =E13+G13+I13+K13+M13+O13+Q13 -> 19935.54 | T13: 4971651
D14: 天然林 | E14: 4213.73 | F14: 702542 | G14: 129.65 | H14: 18957 | I14: 2155.02 | J14: 288104 | K14: 15.54 | L14: 2211 | N14: 0 | P14: 0 | Q14: 3420.2 | R14: 635578 | S14: 9934.14 | T14: 1647392
C15: その他 | E15: 203.75 | F15: 0 | G15: 3.17 | H15: 0 | I15: 81.58 | J15: 0 | K15: 2.1 | L15: 0 | N15: 0 | P15: 0 | Q15: 124.25 | R15: 0 | S15: 414.85 | T15: 0
B16: 安曇野市 | C16: 総 数 | E16: 6103.21 | F16: 1151685 | G16: 3436.75 | H16: 550743 | I16: 0 | J16: 0 | K16: 370.71 | L16: 58065 | M16: 0 | N16: 0 | O16: 0 | P16: 0 | Q16: 4632.91 | R16: 959753 | S16: =SUM(S17,S20) -> 14543.58 | T16: =SUM(T17,T20) -> 2720246
C17: 立木地 | D17: 総 数 | E17: 5990.73 | F17: 1151685 | G17: 3338.82 | H17: 550743 | I17: 0 | J17: 0 | K17: 362.59 | L17: 58065 | M17: 0 | N17: 0 | O17: 0 | P17: 0 | Q17: 4553.04 | R17: 959753 | S17: =SUM(S18:S19) -> 14245.18 | T17: =SUM(T18:T19) -> 2720246
D18: 人工林 | E18: 3062.51 | F18: 728223 | G18: 1299.74 | H18: 290186 | J18: 0 | K18: 126.1 | L18: 28667 | N18: 0 | P18: 0 | Q18: 2197.67 | R18: 557378 | S18: =E18+G18+I18+K18+M18+O18+Q18 -> 6686.02 | T18: 1604454
D19: 天然林 | E19: 2928.22 | F19: 423462 | G19: 2039.08 | H19: 260557 | J19: 0 | K19: 236.49 | L19: 29398 | N19: 0 | P19: 0 | Q19: 2355.37 | R19: 402375 | S19: 7559.16 | T19: 1115792
C20: その他 | E20: 112.48 | F20: 0 | G20: 97.93 | H20: 0 | J20: 0 | K20: 8.12 | L20: 0 | N20: 0 | P20: 0 | Q20: 79.87 | R20: 0 | S20: 298.4 | T20: 0
B21: 麻績村 | C21: 総 数 | E21: 1389.06 | F21: 294238 | G21: 808.71 | H21: 152078 | I21: 0 | J21: 0 | K21: 294.49 | L21: 68560 | M21: 23.35 | N21: 4791 | O21: 0 | P21: 0 | Q21: 1119.36 | R21: 232968 | S21: =SUM(S22,S25) -> 3634.97 | T21: =SUM(T22,T25) -> 752635
C22: 立木地 | D22: 総 数 | E22: 1371.24 | F22: 294238 | G22: 785.6 | H22: 152078 | I22: 0 | J22: 0 | K22: 292.31 | L22: 68560 | M22: 22.1 | N22: 4791 | O22: 0 | P22: 0 | Q22: 1102.52 | R22: 232968 | S22: =SUM(S23:S24) -> 3573.77 | T22: =SUM(T23:T24) -> 752635
D23: 人工林 | E23: 639.88 | F23: 181277 | G23: 329.02 | H23: 83200 | J23: 0 | K23: 203.13 | L23: 57378 | M23: 11.91 | N23: 2660 | P23: 0 | Q23: 445.4 | R23: 124504 | S23: =E23+G23+I23+K23+M23+O23+Q23 -> 1629.34 | T23: 449019
D24: 天然林 | E24: 731.36 | F24: 112961 | G24: 456.58 | H24: 68878 | J24: 0 | K24: 89.18 | L24: 11182 | M24: 10.19 | N24: 2131 | P24: 0 | Q24: 657.12 | R24: 108464 | S24: 1944.43 | T24: 303616
C25: その他 | E25: 17.82 | F25: 0 | G25: 23.11 | H25: 0 | J25: 0 | K25: 2.18 | L25: 0 | M25: 1.25 | N25: 0 | P25: 0 | Q25: 16.84 | R25: 0 | S25: 61.2 | T25: 0
B26: 生坂村 | C26: 総 数 | E26: 71.22 | F26: 8644 | G26: 2511.3 | H26: 336052 | I26: 0 | J26: 0 | K26: 5.67 | L26: 763 | M26: 0 | N26: 0 | O26: 0 | P26: 0 | Q26: 0 | R26: 0 | S26: =SUM(S27,S30) -> 2588.19 | T26: =SUM(T27,T30) -> 345459
C27: 立木地 | D27: 総 数 | E27: 68.38 | F27: 8644 | G27: 2220.35 | H27: 336052 | I27: 0 | J27: 0 | K27: 5.67 | L27: 763 | M27: 0 | N27: 0 | O27: 0 | P27: 0 | Q27: 0 | R27: 0 | S27: =SUM(S28:S29) -> 2294.4 | T27: =SUM(T28:T29) -> 345459
D28: 人工林 | E28: 7.05 | F28: 1649 | G28: 361.72 | H28: 114193 | J28: 0 | K28: 1.55 | L28: 339 | N28: 0 | P28: 0 | R28: 0 | S28: =E28+G28+I28+K28+M28+O28+Q28 -> 370.32 | T28: 116181
D29: 天然林 | E29: 61.33 | F29: 6995 | G29: 1858.63 | H29: 221859 | J29: 0 | K29: 4.12 | L29: 424 | N29: 0 | P29: 0 | R29: 0 | S29: 1924.08 | T29: 229278
C30: その他 | E30: 2.84 | F30: 0 | G30: 290.95 | H30: 0 | J30: 0 | L30: 0 | N30: 0 | P30: 0 | R30: 0 | S30: 293.79 | T30: 0
B31: 山形村 | C31: 総 数 | E31: 461.51 | F31: 117470 | G31: 15.58 | H31: 3628 | I31: 0 | J31: 0 | K31: 38.84 | L31: 11056 | M31: 0 | N31: 0 | O31: 0 | P31: 0 | Q31: 757.17 | R31: 198885 | S31: =SUM(S32,S35) -> 1273.1 | T31: =SUM(T32,T35) -> 331039
C32: 立木地 | D32: 総 数 | E32: 453.54 | F32: 117470 | G32: 13.62 | H32: 3628 | I32: 0 | J32: 0 | K32: 37.41 | L32: 11056 | M32: 0 | N32: 0 | O32: 0 | P32: 0 | Q32: 739 | R32: 198885 | S32: =SUM(S33:S34) -> 1243.57 | T32: =SUM(T33:T34) -> 331039
D33: 人工林 | E33: 372.02 | F33: 103710 | G33: 11.29 | H33: 3327 | J33: 0 | K33: 34.01 | L33: 10344 | N33: 0 | P33: 0 | Q33: 452.9 | R33: 137808 | S33: =E33+G33+I33+K33+M33+O33+Q33 -> 870.22 | T33: 255189
D34: 天然林 | E34: 81.52 | F34: 13760 | G34: 2.33 | H34: 301 | J34: 0 | K34: 3.4 | L34: 712 | N34: 0 | P34: 0 | Q34: 286.1 | R34: 61077 | S34: 373.35 | T34: 75850
C35: その他 | E35: 7.97 | F35: 0 | G35: 1.96 | H35: 0 | J35: 0 | K35: 1.43 | L35: 0 | N35: 0 | P35: 0 | Q35: 18.17 | R35: 0 | S35: 29.53 | T35: 0
B36: 朝日村 | C36: 総 数 | E36: 5143.06 | F36: 1054809 | G36: 24.51 | H36: 3722 | I36: 0 | J36: 0 | K36: 109.44 | L36: 22923 | M36: 0 | N36: 0 | O36: 0 | P36: 0 | Q36: 1270.58 | R36: 286594 | S36: =SUM(S37,S40) -> 6547.59 | T36: =SUM(T37,T40) -> 1368048
C37: 立木地 | D37: 総 数 | E37: 5090.9 | F37: 1054509 | G37: 23.12 | H37: 3722 | I37: 0 | J37: 0 | K37: 109.31 | L37: 22923 | M37: 0 | N37: 0 | O37: 0 | P37: 0 | Q37: 1263.11 | R37: 286594 | S37: =SUM(S38:S39) -> 6486.44 | T37: =SUM(T38:T39) -> 1367748
D38: 人工林 | E38: 3777.61 | F38: 877285 | G38: 9.15 | H38: 1860 | J38: 0 | K38: 77.06 | L38: 18934 | N38: 0 | P38: 0 | Q38: 714.17 | R38: 197859 | S38: =E38+G38+I38+K38+M38+O38+Q38 -> 4577.99 | T38: 1095938
D39: 天然林 | E39: 1313.29 | F39: 177224 | G39: 13.97 | H39: 1862 | J39: 0 | K39: 32.25 | L39: 3989 | N39: 0 | P39: 0 | Q39: 548.94 | R39: 88735 | S39: 1908.45 | T39: 271810
C40: その他 | E40: 52.16 | F40: 300 | G40: 1.39 | H40: 0 | J40: 0 | K40: 0.13 | L40: 0 | N40: 0 | P40: 0 | Q40: 7.47 | R40: 0 | S40: 61.15 | T40: 300
B41: 筑北村 | C41: 総 数 | E41: 3142.04 | F41: 521362 | G41: 2049.28 | H41: 293511 | I41: 0 | J41: 0 | K41: 0 | L41: 0 | M41: 0 | N41: 0 | O41: 0 | P41: 0 | Q41: 620.77 | R41: 113897 | S41: =SUM(S42,S45) -> 5812.09 | T41: =SUM(T42,T45) -> 928770
C42: 立木地 | D42: 総 数 | E42: 3063.96 | F42: 521362 | G42: 1806.89 | H42: 293511 | I42: 0 | J42: 0 | K42: 0 | L42: 0 | M42: 0 | N42: 0 | O42: 0 | P42: 0 | Q42: 596.11 | R42: 113897 | S42: =SUM(S43:S44) -> 5466.96 | T42: =SUM(T43:T44) -> 928770
D43: 人工林 | E43: 1257.43 | F43: 306567 | G43: 762.98 | H43: 159803 | J43: 0 | L43: 0 | N43: 0 | P43: 0 | Q43: 292.03 | R43: 68898 | S43: =E43+G43+I43+K43+M43+O43+Q43 -> 2312.44 | T43: 535268
D44: 天然林 | E44: 1806.53 | F44: 214795 | G44: 1043.91 | H44: 133708 | J44: 0 | L44: 0 | N44: 0 | P44: 0 | Q44: 304.08 | R44: 44999 | S44: 3154.52 | T44: 393502
C45: その他 | E45: 78.08 | F45: 0 | G45: 242.39 | H45: 0 | J45: 0 | L45: 0 | N45: 0 | P45: 0 | Q45: 24.66 | R45: 0 | S45: 345.13 | T45: 0
B46: 松本計 | C46: 総 数 | E46: 49259.31 | F46: 9263663 | G46: 19378.42 | H46: 3172453 | I46: 4997.29 | J46: 1059193 | K46: 3317.97 | L46: 538256 | M46: 104.78 | N46: 20128 | O46: 0 | P46: 0 | Q46: 41520.15 | R46: 8585854 | S46: =SUM(S47,S50) -> 118577.92 | T46: =SUM(T47,T50) -> 22639547
C47: 立木地 | D47: 総 数 | E47: 48348.79 | F47: 9263363 | G47: 18442.52 | H47: 3172453 | I47: 4915.71 | J47: 1059193 | K47: 3188.84 | L47: 538256 | M47: 102.74 | N47: 20088 | O47: 0 | P47: 0 | Q47: 40812.01 | R47: 8585854 | S47: =SUM(S48:S49) -> 115810.61 | T47: =SUM(T48:T49) -> 22639207
D48: 人工林 | E48: 27045.73 | F48: 6356711 | G48: 7895.92 | H48: 1806192 | I48: 2760.69 | J48: 771089 | K48: 1328.18 | L48: 313300 | M48: 44.13 | N48: 10744 | O48: 0 | P48: 0 | Q48: 25731.82 | R48: 6268877 | S48: =E48+G48+I48+K48+M48+O48+Q48 -> 64806.47 | T48: 15526913
D49: 天然林 | E49: 21303.06 | F49: 2906652 | G49: 10546.6 | H49: 1366261 | I49: 2155.02 | J49: 288104 | K49: 1860.66 | L49: 224956 | M49: 58.61 | N49: 9344 | O49: 0 | P49: 0 | Q49: 15080.19 | R49: 2316977 | S49: 51004.14 | T49: 7112294
C50: その他 | E50: 910.52 | F50: 300 | G50: 935.9 | H50: 0 | I50: 81.58 | J50: 0 | K50: 129.13 | L50: 0 | M50: 2.04 | N50: 40 | O50: 0 | P50: 0 | Q50: 708.14 | R50: 0 | S50: 2767.31 | T50: 340
A51: 北アルプス | B51: 大町市 | C51: 総 数 | E51: 15554.56 | F51: 2508254 | G51: 11376.29 | H51: 1812331 | I51: 34.82 | J51: 4677 | K51: 71.04 | L51: 13209 | M51: 590.33 | N51: 113387 | O51: 3.75 | P51: 972 | Q51: 10702.93 | R51: 1828721 | S51: =SUM(S52,S55) -> 38333.72 | T51: =SUM(T52,T55) -> 6281551
C52: 立木地 | D52: 総 数 | E52: 15455.08 | F52: 2508254 | G52: 11305.84 | H52: 1812331 | I52: 33.8 | J52: 4677 | K52: 69.38 | L52: 13209 | M52: 589.93 | N52: 113387 | O52: 3.75 | P52: 972 | Q52: 10624.34 | R52: 1828721 | S52: =SUM(S53:S54) -> 38082.12 | T52: =SUM(T53:T54) -> 6281551
D53: 人工林 | E53: 5883.79 | F53: 1437895 | G53: 4262.42 | H53: 1018009 | I53: 4.82 | J53: 1094 | K53: 30.52 | L53: 8305 | M53: 217.06 | N53: 69573 | O53: 3.35 | P53: 941 | Q53: 5028.56 | R53: 1184367 | S53: =E53+G53+I53+K53+M53+O53+Q53 -> 15430.52 | T53: 3720184
D54: 天然林 | E54: 9571.29 | F54: 1070359 | G54: 7043.42 | H54: 794322 | I54: 28.98 | J54: 3583 | K54: 38.86 | L54: 4904 | M54: 372.87 | N54: 43814 | O54: 0.4 | P54: 31 | Q54: 5595.78 | R54: 644354 | S54: 22651.6 | T54: 2561367
C55: その他 | E55: 99.48 | F55: 0 | G55: 70.45 | H55: 0 | I55: 1.02 | J55: 0 | K55: 1.66 | L55: 0 | M55: 0.4 | N55: 0 | P55: 0 | Q55: 78.59 | R55: 0 | S55: 251.6 | T55: 0
B56: 池田町 | C56: 総 数 | E56: 75.45 | F56: 13043 | G56: 1082.19 | H56: 183494 | I56: 0 | J56: 0 | K56: 60.59 | L56: 10709 | M56: 0 | N56: 0 | O56: 0 | P56: 0 | Q56: 1183.39 | R56: 198944 | S56: =SUM(S57,S60) -> 2401.62 | T56: =SUM(T57,T60) -> 406190
C57: 立木地 | D57: 総 数 | E57: 75.18 | F57: 13043 | G57: 1077.52 | H57: 183494 | I57: 0 | J57: 0 | K57: 60.32 | L57: 10709 | M57: 0 | N57: 0 | O57: 0 | P57: 0 | Q57: 1178.45 | R57: 198944 | S57: =SUM(S58:S59) -> 2391.47 | T57: =SUM(T58:T59) -> 406190
D58: 人工林 | E58: 40.03 | F58: 7793 | G58: 352.15 | H58: 93365 | J58: 0 | K58: 35.55 | L58: 6921 | N58: 0 | P58: 0 | Q58: 407.87 | R58: 102968 | S58: =E58+G58+I58+K58+M58+O58+Q58 -> 835.6 | T58: 211047
D59: 天然林 | E59: 35.15 | F59: 5250 | G59: 725.37 | H59: 90129 | J59: 0 | K59: 24.77 | L59: 3788 | N59: 0 | P59: 0 | Q59: 770.58 | R59: 95976 | S59: 1555.87 | T59: 195143
C60: その他 | E60: 0.27 | F60: 0 | G60: 4.67 | H60: 0 | J60: 0 | K60: 0.27 | L60: 0 | N60: 0 | P60: 0 | Q60: 4.94 | R60: 0 | S60: 10.15 | T60: 0
A61: 北アルプス | B61: 松川村 | C61: 総 数 | E61: 237.07 | F61: 43272 | G61: 524.98 | H61: 91875 | I61: 0 | J61: 0 | K61: 140.08 | L61: 29968 | M61: 0 | N61: 0 | O61: 0 | P61: 0 | Q61: 1665.63 | R61: 286949 | S61: =SUM(S62,S65) -> 2567.76 | T61: =SUM(T62,T65) -> 452064
C62: 立木地 | D62: 総 数 | E62: 223.93 | F62: 43272 | G62: 523.92 | H62: 91875 | I62: 0 | J62: 0 | K62: 138.28 | L62: 29968 | M62: 0 | N62: 0 | O62: 0 | P62: 0 | Q62: 1641.63 | R62: 286949 | S62: =SUM(S63:S64) -> 2527.76 | T62: =SUM(T63:T64) -> 452064
D63: 人工林 | E63: 127.79 | F63: 25509 | G63: 155.23 | H63: 37615 | J63: 0 | K63: 74.86 | L63: 19241 | N63: 0 | P63: 0 | Q63: 526.83 | R63: 112686 | S63: =E63+G63+I63+K63+M63+O63+Q63 -> 884.71 | T63: 195051
D64: 天然林 | E64: 96.14 | F64: 17763 | G64: 368.69 | H64: 54260 | J64: 0 | K64: 63.42 | L64: 10727 | N64: 0 | P64: 0 | Q64: 1114.8 | R64: 174263 | S64: 1643.05 | T64: 257013
C65: その他 | E65: 13.14 | F65: 0 | G65: 1.06 | H65: 0 | J65: 0 | K65: 1.8 | L65: 0 | N65: 0 | P65: 0 | Q65: 24 | R65: 0 | S65: 40 | T65: 0
B66: 白馬村 | C66: 総 数 | E66: 1460.53 | F66: 194106 | G66: 2851.01 | H66: 155496 | I66: 0 | J66: 0 | K66: 159.55 | L66: 36250 | M66: 0 | N66: 0 | O66: 0 | P66: 0 | Q66: 7681.16 | R66: 1172960 | S66: =SUM(S67,S70) -> 12152.25 | T66: =SUM(T67,T70) -> 1558812
C67: 立木地 | D67: 総 数 | E67: 1457.19 | F67: 194106 | G67: 1331.39 | H67: 155496 | I67: 0 | J67: 0 | K67: 158.9 | L67: 36250 | M67: 0 | N67: 0 | O67: 0 | P67: 0 | Q67: 7598.97 | R67: 1172960 | S67: =SUM(S68:S69) -> 10546.45 | T67: =SUM(T68:T69) -> 1558812
D68: 人工林 | E68: 390.09 | F68: 93414 | G68: 149.51 | H68: 42205 | J68: 0 | K68: 87.77 | L68: 29240 | N68: 0 | P68: 0 | Q68: 1984.94 | R68: 601587 | S68: =E68+G68+I68+K68+M68+O68+Q68 -> 2612.31 | T68: 766446
D69: 天然林 | E69: 1067.1 | F69: 100692 | G69: 1181.88 | H69: 113291 | J69: 0 | K69: 71.13 | L69: 7010 | N69: 0 | P69: 0 | Q69: 5614.03 | R69: 571373 | S69: 7934.14 | T69: 792366
C70: その他 | E70: 3.34 | F70: 0 | G70: 1519.62 | H70: 0 | J70: 0 | K70: 0.65 | L70: 0 | N70: 0 | P70: 0 | Q70: 82.19 | R70: 0 | S70: 1605.8 | T70: 0
B71: 小谷村 | C71: 総 数 | E71: 5050.11 | F71: 714435 | G71: 5238.96 | H71: 866905 | I71: 0 | J71: 0 | K71: 1857.21 | L71: 221429 | M71: 0 | N71: 0 | O71: 0 | P71: 0 | Q71: 12955.14 | R71: 2053862 | S71: =SUM(S72,S75) -> 25101.42 | T71: =SUM(T72,T75) -> 3856631
C72: 立木地 | D72: 総 数 | E72: 4804.17 | F72: 689964 | G72: 5093.61 | H72: 866905 | I72: 0 | J72: 0 | K72: 1649.42 | L72: 196958 | M72: 0 | N72: 0 | O72: 0 | P72: 0 | Q72: 12550.03 | R72: 2029391 | S72: =SUM(S73:S74) -> 24097.23 | T72: =SUM(T73:T74) -> 3783218
D73: 人工林 | E73: 936.67 | F73: 290135 | G73: 1244.56 | H73: 474086 | J73: 0 | K73: 121.48 | L73: 37505 | N73: 0 | P73: 0 | Q73: 2852.51 | R73: 1031455 | S73: =E73+G73+I73+K73+M73+O73+Q73 -> 5155.22 | T73: =F73+H73+J73+L73+N73+P73+R73 -> 1833181
D74: 天然林 | E74: 3867.5 | F74: 399829 | G74: 3849.05 | H74: 392819 | J74: 0 | K74: 1527.94 | L74: 159453 | N74: 0 | P74: 0 | Q74: 9697.52 | R74: 997936 | S74: =E74+G74+I74+K74+M74+O74+Q74 -> 18942.01 | T74: 1950037
C75: その他 | E75: 245.94 | F75: 24471 | G75: 145.35 | H75: 0 | J75: 0 | K75: 207.79 | L75: 24471 | N75: 0 | P75: 0 | Q75: 405.11 | R75: 24471 | S75: 1004.19 | T75: 73413
B76: 北アルプス計 | C76: 総 数 | E76: 22377.72 | F76: 3473110 | G76: 21073.43 | H76: 3110101 | I76: 34.82 | J76: 4677 | K76: 2288.47 | L76: 311565 | M76: 590.33 | N76: 113387 | O76: 3.75 | P76: 972 | Q76: 34188.25 | R76: 5541436 | S76: =SUM(S77,S80) -> 80556.77 | T76: =SUM(T77,T80) -> 12555248
C77: 立木地 | D77: 総 数 | E77: 22015.55 | F77: 3448639 | G77: 19332.28 | H77: 3110101 | I77: 33.8 | J77: 4677 | K77: 2076.3 | L77: 287094 | M77: 589.93 | N77: 113387 | O77: 3.75 | P77: 972 | Q77: 33593.42 | R77: 5516965 | S77: =SUM(S78:S79) -> 77645.03 | T77: =SUM(T78:T79) -> 12481835
D78: 人工林 | E78: 7378.37 | F78: 1854746 | G78: 6163.87 | H78: 1665280 | I78: 4.82 | J78: 1094 | K78: 350.18 | L78: 101212 | M78: 217.06 | N78: 69573 | O78: 3.35 | P78: 941 | Q78: 10800.71 | R78: 3033063 | S78: =E78+G78+I78+K78+M78+O78+Q78 -> 24918.36 | T78: =F78+H78+J78+L78+N78+P78+R78 -> 6725909
D79: 天然林 | E79: 14637.18 | F79: 1593893 | G79: 13168.41 | H79: 1444821 | I79: 28.98 | J79: 3583 | K79: 1726.12 | L79: 185882 | M79: 372.87 | N79: 43814 | O79: 0.4 | P79: 31 | Q79: 22792.71 | R79: 2483902 | S79: 52726.67 | T79: 5755926
C80: その他 | E80: 362.17 | F80: 24471 | G80: 1741.15 | H80: 0 | I80: 1.02 | J80: 0 | K80: 212.17 | L80: 24471 | M80: 0.4 | N80: 0 | O80: 0 | P80: 0 | Q80: 594.83 | R80: 24471 | S80: 2911.74 | T80: 73413
A81: 計画区計 | C81: 総 数 | E81: 71637.03 | F81: 12736773 | G81: 40451.85 | H81: 6282554 | I81: 5032.11 | J81: 1063870 | K81: 5606.44 | L81: 849821 | M81: 695.11 | N81: 133515 | O81: 3.75 | P81: 972 | Q81: 75708.4 | R81: 14127290 | S81: =SUM(S82,S85) -> 199134.69 | T81: =SUM(T82,T85) -> 35194795
C82: 立木地 | D82: 総 数 | E82: 70364.34 | F82: 12712002 | G82: 37774.8 | H82: 6282554 | I82: 4949.51 | J82: 1063870 | K82: 5265.14 | L82: 825350 | M82: 692.67 | N82: 133475 | O82: 3.75 | P82: 972 | Q82: 74405.43 | R82: 14102819 | S82: =SUM(S83:S84) -> 193455.64 | T82: =SUM(T83:T84) -> 35121042
D83: 人工林 | E83: 34424.1 | F83: 8211457 | G83: 14059.79 | H83: 3471472 | I83: 2765.51 | J83: 772183 | K83: 1678.36 | L83: 414512 | M83: 261.19 | N83: 80317 | O83: 3.35 | P83: 941 | Q83: 36532.53 | R83: 9301940 | S83: =E83+G83+I83+K83+M83+O83+Q83 -> 89724.83 | T83: =F83+H83+J83+L83+N83+P83+R83 -> 22252822
D84: 天然林 | E84: 35940.24 | F84: 4500545 | G84: 23715.01 | H84: 2811082 | I84: 2184 | J84: 291687 | K84: 3586.78 | L84: 410838 | M84: 431.48 | N84: 53158 | O84: 0.4 | P84: 31 | Q84: 37872.9 | R84: 4800879 | S84: 103730.81 | T84: 12868220
C85: その他 | E85: 1272.69 | F85: 24771 | G85: 2677.05 | H85: 0 | I85: 82.6 | J85: 0 | K85: 341.3 | L85: 24471 | M85: 2.44 | N85: 40 | O85: 0 | P85: 0 | Q85: 1302.97 | R85: 24471 | S85: 5679.05 | T85: 73753
Q86: =Q81+O81+M81+K81+I81+G81+E81 -> 199134.69 | R86: =R81+P81+N81+L81+J81+H81+F81 -> 35194795

Sheet 千曲川下流
A1: 第10-1表 市町村別・公益的機能別施業森林等区分別ゾーニング別・資源表
R2: （単位 面積：ha 蓄積：m3）
A3: 地域振興局 | B3: 市町村名 | C3: 区 分 | E3: 公益的機能別施業森林等区分別
E4: 水かん | G4: 山災/土壌 | I4: 快適環境 | K4: 保健 | M4: 文化 | O4: 独自 | Q4: 木材 | S4: 総数
E5: 面積 | F5: 蓄積 | G5: 面積 | H5: 蓄積 | I5: 面積 | J5: 蓄積 | K5: 面積 | L5: 蓄積 | M5: 面積 | N5: 蓄積 | O5: 面積 | P5: 蓄積 | Q5: 面積 | R5: 蓄積 | S5: 面積 | T5: 蓄積
A6: 長野 | B6: 長野市 | C6: 総 数 | E6: 41409.78 | F6: 9798308 | G6: 2702.09 | H6: 519252 | I6: 0 | J6: 0 | K6: 0 | L6: 0 | M6: 0 | N6: 0 | O6: 0 | P6: 0 | Q6: 10455.43 | R6: 3202054 | S6: =SUM(S7,S10) -> 54567.3 | T6: =SUM(T7,T10) -> 13519614
C7: 立木地 | D7: 総 数 | E7: 39964.76 | F7: 9798308 | G7: 2559.14 | H7: 519252 | I7: 0 | J7: 0 | K7: 0 | L7: 0 | M7: 0 | N7: 0 | O7: 0 | P7: 0 | Q7: 10211.22 | R7: 3202054 | S7: =SUM(S8:S9) -> 52735.12 | T7: =SUM(T8:T9) -> 13519614
D8: 人工林 | E8: 18376.5 | F8: 7071142 | G8: 737.5 | H8: 298594 | J8: 0 | L8: 0 | N8: 0 | P8: 0 | Q8: 8360.45 | R8: 2965312 | S8: =E8+G8+I8+K8+M8+O8+Q8 -> 27474.45 | T8: 10335048
D9: 天然林 | E9: 21588.26 | F9: 2727166 | G9: 1821.64 | H9: 220658 | J9: 0 | L9: 0 | N9: 0 | P9: 0 | Q9: 1850.77 | R9: 236742 | S9: 25260.67 | T9: 3184566
C10: その他 | E10: 1445.02 | G10: 142.95 | H10: 0 | J10: 0 | L10: 0 | N10: 0 | P10: 0 | Q10: 244.21 | R10: 0 | S10: 1832.18 | T10: 0
B11: 須坂市 | C11: 総 数 | E11: 2043.84 | F11: 444681 | G11: 6011.48 | H11: 1662029 | I11: 0 | J11: 0 | K11: 396.9 | L11: 82619 | M11: 0 | N11: 0 | O11: 0 | P11: 0 | Q11: 665.07 | R11: 183310 | S11: =SUM(S12,S15) -> 9117.29 | T11: =SUM(T12,T15) -> 2372639
C12: 立木地 | D12: 総 数 | E12: 1905.08 | F12: 444681 | G12: 5690.16 | H12: 1659992 | I12: 0 | J12: 0 | K12: 379.15 | L12: 82619 | M12: 0 | N12: 0 | O12: 0 | P12: 0 | Q12: 643.66 | R12: 181374 | S12: =SUM(S13:S14) -> 8618.05 | T12: =SUM(T13:T14) -> 2368666
D13: 人工林 | E13: 1029.46 | F13: 336071 | G13: 3510.68 | H13: 1380714 | J13: 0 | K13: 169.72 | L13: 59308 | N13: 0 | P13: 0 | Q13: 386.24 | R13: 145675 | S13: =E13+G13+I13+K13+M13+O13+Q13 -> 5096.1 | T13: 1921768
D14: 天然林 | E14: 875.62 | F14: 108610 | G14: 2179.48 | H14: 279278 | J14: 0 | K14: 209.43 | L14: 23311 | N14: 0 | P14: 0 | Q14: 257.42 | R14: 35699 | S14: 3521.95 | T14: 446898
C15: その他 | E15: 138.76 | F15: 0 | G15: 321.32 | H15: 2037 | J15: 0 | K15: 17.75 | L15: 0 | N15: 0 | P15: 0 | Q15: 21.41 | R15: 1936 | S15: 499.24 | T15: 3973
B16: 千曲市 | C16: 総 数 | E16: 3856.13 | F16: 922246 | G16: 2736.78 | H16: 541768 | I16: 0 | J16: 0 | K16: 255.69 | L16: 63652 | M16: 255.69 | N16: 63652 | O16: 0 | P16: 0 | Q16: 1276.88 | R16: 347394 | S16: =SUM(S17,S20) -> 8381.17 | T16: =SUM(T17,T20) -> 1938712
C17: 立木地 | D17: 総 数 | E17: 3782 | F17: 922246 | G17: 2647.96 | H17: 541768 | I17: 0 | J17: 0 | K17: 248.89 | L17: 63652 | M17: 248.89 | N17: 63652 | O17: 0 | P17: 0 | Q17: 1254.41 | R17: 347394 | S17: =SUM(S18:S19) -> 8182.15 | T17: =SUM(T18:T19) -> 1938712
D18: 人工林 | E18: 2296.66 | F18: 706750 | G18: 927.33 | H18: 288683 | J18: 0 | K18: 192.15 | L18: 56696 | M18: 192.15 | N18: 56696 | P18: 0 | Q18: 1012.83 | R18: 308814 | S18: =E18+G18+I18+K18+M18+O18+Q18 -> 4621.12 | T18: 1417639
D19: 天然林 | E19: 1485.34 | F19: 215496 | G19: 1720.63 | H19: 253085 | J19: 0 | K19: 56.74 | L19: 6956 | M19: 56.74 | N19: 6956 | P19: 0 | Q19: 241.58 | R19: 38580 | S19: 3561.03 | T19: 521073
C20: その他 | E20: 74.13 | F20: 0 | G20: 88.82 | H20: 0 | J20: 0 | K20: 6.8 | L20: 0 | M20: 6.8 | N20: 0 | P20: 0 | Q20: 22.47 | R20: 0 | S20: 199.02 | T20: 0
B21: 坂城町 | C21: 総 数 | E21: 1183.72 | F21: 285819 | G21: 585.07 | H21: 135008 | I21: 0 | J21: 0 | K21: 47.63 | L21: 11000 | M21: 0 | N21: 0 | O21: 0 | P21: 0 | Q21: 1221.76 | R21: 305847 | S21: =SUM(S22,S25) -> 3038.18 | T21: =SUM(T22,T25) -> 737674
C22: 立木地 | D22: 総 数 | E22: 1146.34 | F22: 285431 | G22: 577.12 | H22: 134788 | I22: 0 | J22: 0 | K22: 46.43 | L22: 11000 | M22: 0 | N22: 0 | O22: 0 | P22: 0 | Q22: 1184.53 | R22: 305239 | S22: =SUM(S23:S24) -> 2954.42 | T22: =SUM(T23:T24) -> 736458
D23: 人工林 | E23: 671.73 | F23: 210789 | G23: 256.22 | H23: 82460 | J23: 0 | K23: 15.97 | L23: 5008 | N23: 0 | P23: 0 | Q23: 776.59 | R23: 241803 | S23: =E23+G23+I23+K23+M23+O23+Q23 -> 1720.51 | T23: 540060
D24: 天然林 | E24: 474.61 | F24: 74642 | G24: 320.9 | H24: 52328 | J24: 0 | K24: 30.46 | L24: 5992 | N24: 0 | P24: 0 | Q24: 407.94 | R24: 63436 | S24: 1233.91 | T24: 196398
C25: その他 | E25: 37.38 | F25: 388 | G25: 7.95 | H25: 220 | J25: 0 | K25: 1.2 | L25: 0 | N25: 0 | P25: 0 | Q25: 37.23 | R25: 608 | S25: 83.76 | T25: 1216
B26: 小布施町 | C26: 総 数 | E26: 0 | F26: 0 | G26: 46.42 | H26: 4646 | I26: 70.71 | J26: 14411 | K26: 103.98 | L26: 17017 | M26: 0 | N26: 0 | O26: 0 | P26: 0 | Q26: 97.55 | R26: 21706 | S26: =SUM(S27,S30) -> 318.66 | T26: =SUM(T27,T30) -> 57780
C27: 立木地 | D27: 総 数 | E27: 0 | F27: 0 | G27: 33.31 | H27: 4646 | I27: 69.83 | J27: 14411 | K27: 103.45 | L27: 17017 | M27: 0 | N27: 0 | O27: 0 | P27: 0 | Q27: 94.84 | R27: 21706 | S27: =SUM(S28:S29) -> 301.43 | T27: =SUM(T28:T29) -> 57780
D28: 人工林 | F28: 0 | G28: 9.59 | H28: 1907 | I28: 21.97 | J28: 9005 | K28: 16.87 | L28: 7050 | N28: 0 | P28: 0 | Q28: 31.71 | R28: 14760 | S28: =E28+G28+I28+K28+M28+O28+Q28 -> 80.14 | T28: 32722
D29: 天然林 | F29: 0 | G29: 23.72 | H29: 2739 | I29: 47.86 | J29: 5406 | K29: 86.58 | L29: 9967 | N29: 0 | P29: 0 | Q29: 63.13 | R29: 6946 | S29: 221.29 | T29: 25058
C30: その他 | F30: 0 | G30: 13.11 | H30: 0 | I30: 0.88 | J30: 0 | K30: 0.53 | L30: 0 | N30: 0 | P30: 0 | Q30: 2.71 | R30: 0 | S30: 17.23 | T30: 0
B31: 高山村 | C31: 総 数 | E31: 5733.36 | F31: 1187674 | G31: 1803.76 | H31: 432285 | I31: 0 | J31: 0 | K31: 729.59 | L31: 108453 | M31: 0 | N31: 0 | O31: 0 | P31: 0 | Q31: 597.26 | R31: 136313 | S31: =SUM(S32,S35) -> 8863.97 | T31: =SUM(T32,T35) -> 1864725
C32: 立木地 | D32: 総 数 | E32: 5196.73 | F32: 1187674 | G32: 1748.68 | H32: 432285 | I32: 0 | J32: 0 | K32: 602.33 | L32: 108453 | M32: 0 | N32: 0 | O32: 0 | P32: 0 | Q32: 585.82 | R32: 136313 | S32: =SUM(S33:S34) -> 8133.56 | T32: =SUM(T33:T34) -> 1864725
D33: 人工林 | E33: 2556.72 | F33: 886523 | G33: 784.66 | H33: 322307 | J33: 0 | K33: 135.27 | L33: 57519 | N33: 0 | P33: 0 | Q33: 419.67 | R33: 117283 | S33: =E33+G33+I33+K33+M33+O33+Q33 -> 3896.32 | T33: 1383632
D34: 天然林 | E34: 2640.01 | F34: 301151 | G34: 964.02 | H34: 109978 | J34: 0 | K34: 467.06 | L34: 50934 | N34: 0 | P34: 0 | Q34: 166.15 | R34: 19030 | S34: 4237.24 | T34: 481093
C35: その他 | E35: 536.63 | F35: 0 | G35: 55.08 | H35: 0 | J35: 0 | K35: 127.26 | L35: 0 | N35: 0 | P35: 0 | Q35: 11.44 | R35: 0 | S35: 730.41 | T35: 0
B36: 信濃町 | C36: 総 数 | E36: 380.49 | F36: 85350 | G36: 378.64 | H36: 86064 | I36: 0 | J36: 0 | K36: 12.38 | L36: 1846 | M36: 0 | N36: 0 | O36: 0 | P36: 0 | Q36: 4867.16 | R36: 1178162 | S36: =SUM(S37,S40) -> 5638.67 | T36: =SUM(T37,T40) -> 1351422
C37: 立木地 | D37: 総 数 | E37: 372.35 | F37: 85350 | G37: 375.43 | H37: 86064 | I37: 0 | J37: 0 | K37: 12 | L37: 1846 | M37: 0 | N37: 0 | O37: 0 | P37: 0 | Q37: 4796 | R37: 1178162 | S37: =SUM(S38:S39) -> 5555.78 | T37: =SUM(T38:T39) -> 1351422
D38: 人工林 | E38: 150.08 | F38: 60274 | G38: 123.36 | H38: 54481 | J38: 0 | K38: 0.6 | L38: 341 | N38: 0 | P38: 0 | Q38: 2207.78 | R38: 862464 | S38: =E38+G38+I38+K38+M38+O38+Q38 -> 2481.82 | T38: 977560
D39: 天然林 | E39: 222.27 | F39: 25076 | G39: 252.07 | H39: 31583 | J39: 0 | K39: 11.4 | L39: 1505 | N39: 0 | P39: 0 | Q39: 2588.22 | R39: 315698 | S39: 3073.96 | T39: 373862
C40: その他 | E40: 8.14 | F40: 0 | G40: 3.21 | H40: 0 | J40: 0 | K40: 0.38 | L40: 0 | N40: 0 | P40: 0 | Q40: 71.16 | R40: 0 | S40: 82.89 | T40: 0
B41: 飯綱町 | C41: 総 数 | E41: 832.71 | F41: 204648 | G41: 510.61 | H41: 120154 | I41: 0 | J41: 0 | K41: 431.07 | L41: 104993 | M41: 0 | N41: 0 | O41: 0 | P41: 0 | Q41: 2762.61 | R41: 682236 | S41: =SUM(S42,S45) -> 4537 | T41: =SUM(T42,T45) -> 1112031
C42: 立木地 | D42: 総 数 | E42: 825.7 | F42: 204648 | G42: 505.16 | H42: 120154 | I42: 0 | J42: 0 | K42: 429.54 | L42: 104993 | M42: 0 | N42: 0 | O42: 0 | P42: 0 | Q42: 2749.01 | R42: 682236 | S42: =SUM(S43:S44) -> 4509.41 | T42: =SUM(T43:T44) -> 1112031
D43: 人工林 | E43: 431.6 | F43: 157300 | G43: 212.53 | H43: 82745 | J43: 0 | K43: 238.43 | L43: 81913 | N43: 0 | P43: 0 | Q43: 1310.84 | R43: 509647 | S43: =E43+G43+I43+K43+M43+O43+Q43 -> 2193.4 | T43: 831605
D44: 天然林 | E44: 394.1 | F44: 47348 | G44: 292.63 | H44: 37409 | J44: 0 | K44: 191.11 | L44: 23080 | N44: 0 | P44: 0 | Q44: 1438.17 | R44: 172589 | S44: 2316.01 | T44: 280426
C45: その他 | E45: 7.01 | F45: 0 | G45: 5.45 | H45: 0 | J45: 0 | K45: 1.53 | L45: 0 | N45: 0 | P45: 0 | Q45: 13.6 | R45: 0 | S45: 27.59 | T45: 0
B46: 小川村 | C46: 総 数 | E46: 3040.45 | F46: 664590 | G46: 2914.25 | H46: 717866 | I46: 0 | J46: 0 | K46: 0 | L46: 0 | M46: 0 | N46: 0 | O46: 0 | P46: 0 | Q46: 653.64 | R46: 189042 | S46: =SUM(S47,S50) -> 6608.34 | T46: =SUM(T47,T50) -> 1571498
C47: 立木地 | D47: 総 数 | E47: 2979.93 | F47: 664590 | G47: 2847.75 | H47: 717866 | I47: 0 | J47: 0 | K47: 0 | L47: 0 | M47: 0 | N47: 0 | O47: 0 | P47: 0 | Q47: 641.84 | R47: 189042 | S47: =SUM(S48:S49) -> 6469.52 | T47: =SUM(T48:T49) -> 1571498
D48: 人工林 | E48: 960.9 | F48: 426983 | G48: 1156.33 | H48: 521828 | J48: 0 | L48: 0 | N48: 0 | P48: 0 | Q48: 332.65 | R48: 153633 | S48: =E48+G48+I48+K48+M48+O48+Q48 -> 2449.88 | T48: 1102444
D49: 天然林 | E49: 2019.03 | F49: 237607 | G49: 1691.42 | H49: 196038 | J49: 0 | L49: 0 | N49: 0 | P49: 0 | Q49: 309.19 | R49: 35409 | S49: 4019.64 | T49: 469054
C50: その他 | E50: 60.52 | F50: 0 | G50: 66.5 | H50: 0 | J50: 0 | L50: 0 | N50: 0 | P50: 0 | Q50: 11.8 | R50: 0 | S50: 138.82 | T50: 0
B51: 長野計 | C51: 総 数 | E51: 58480.48 | F51: 13593316 | G51: 17689.1 | H51: 4219072 | I51: 70.71 | J51: 14411 | K51: 1977.24 | L51: 389580 | M51: 255.69 | N51: 63652 | O51: 0 | P51: 0 | Q51: 22597.36 | R51: 6246064 | S51: =SUM(S52,S55) -> 101070.58 | T51: =SUM(T52,T55) -> 24526095
C52: 立木地 | D52: 総 数 | E52: 56172.89 | F52: 13592928 | G52: 16984.71 | H52: 4216815 | I52: 69.83 | J52: 14411 | K52: 1821.79 | L52: 389580 | M52: 248.89 | N52: 63652 | O52: 0 | P52: 0 | Q52: 22161.33 | R52: 6243520 | S52: =SUM(S53:S54) -> 97459.44 | T52: =SUM(T53:T54) -> 24520906
D53: 人工林 | E53: 26473.65 | F53: 9855832 | G53: 7718.2 | H53: 3033719 | I53: 21.97 | J53: 9005 | K53: 769.01 | L53: 267835 | M53: 192.15 | N53: 56696 | O53: 0 | P53: 0 | Q53: 14838.76 | R53: 5319391 | S53: =E53+G53+I53+K53+M53+O53+Q53 -> 50013.74 | T53: 18542478
D54: 天然林 | E54: 29699.24 | F54: 3737096 | G54: 9266.51 | H54: 1183096 | I54: 47.86 | J54: 5406 | K54: 1052.78 | L54: 121745 | M54: 56.74 | N54: 6956 | O54: 0 | P54: 0 | Q54: 7322.57 | R54: 924129 | S54: 47445.7 | T54: 5978428
C55: その他 | E55: 2307.59 | F55: 388 | G55: 704.39 | H55: 2257 | I55: 0.88 | J55: 0 | K55: 155.45 | L55: 0 | M55: 6.8 | N55: 0 | O55: 0 | P55: 0 | Q55: 436.03 | R55: 2544 | S55: 3611.14 | T55: 5189
A56: 北信 | B56: 中野市 | C56: 総 数 | E56: 1948.79 | F56: 577710 | G56: 833.56 | H56: 221267 | I56: 0 | J56: 0 | K56: 237.65 | L56: 53396 | M56: 0 | N56: 0 | O56: 0 | P56: 0 | Q56: 4423.62 | R56: 1257114 | S56: =SUM(S57,S60) -> 7443.62 | T56: =SUM(T57,T60) -> 2109487
C57: 立木地 | D57: 総 数 | E57: 1938.54 | F57: 577710 | G57: 819.23 | H57: 221267 | I57: 0 | J57: 0 | K57: 220.11 | L57: 53396 | M57: 0 | N57: 0 | O57: 0 | P57: 0 | Q57: 4368.81 | R57: 1257114 | S57: =SUM(S58:S59) -> 7346.69 | T57: =SUM(T58:T59) -> 2109487
D58: 人工林 | E58: 1148.24 | F58: 480441 | G58: 406.82 | H58: 175057 | J58: 0 | K58: 97.45 | L58: 39442 | N58: 0 | P58: 0 | Q58: 2393.48 | R58: 1024188 | S58: =E58+G58+I58+K58+M58+O58+Q58 -> 4045.99 | T58: 1719128
D59: 天然林 | E59: 790.3 | F59: 97269 | G59: 412.41 | H59: 46210 | J59: 0 | K59: 122.66 | L59: 13954 | N59: 0 | P59: 0 | Q59: 1975.33 | R59: 232926 | S59: 3300.7 | T59: 390359
C60: その他 | E60: 10.25 | F60: 0 | G60: 14.33 | H60: 0 | J60: 0 | K60: 17.54 | L60: 0 | N60: 0 | P60: 0 | Q60: 54.81 | R60: 0 | S60: 96.93 | T60: 0
A61: 北信 | B61: 飯山市 | C61: 総 数 | E61: 5102.99 | F61: 1005309 | G61: 2627.54 | H61: 612441 | I61: 0 | J61: 0 | K61: 159.02 | L61: 29500 | M61: 0 | N61: 0 | O61: 0 | P61: 0 | Q61: 9581.73 | R61: 2108826 | S61: =SUM(S62,S65) -> 17471.28 | T61: =SUM(T62,T65) -> 3756076
C62: 立木地 | D62: 総 数 | E62: 5045.59 | F62: 1005309 | G62: 2560.35 | H62: 612441 | I62: 0 | J62: 0 | K62: 158.24 | L62: 29500 | M62: 0 | N62: 0 | O62: 0 | P62: 0 | Q62: 9438.39 | R62: 2108826 | S62: =SUM(S63:S64) -> 17202.57 | T62: =SUM(T63:T64) -> 3756076
D63: 人工林 | E63: 1256.32 | F63: 575681 | G63: 925.38 | H63: 427274 | J63: 0 | K63: 31.27 | L63: 13852 | N63: 0 | P63: 0 | Q63: 2988.91 | R63: 1368562 | S63: =E63+G63+I63+K63+M63+O63+Q63 -> 5201.88 | T63: 2385369
D64: 天然林 | E64: 3789.27 | F64: 429628 | G64: 1634.97 | H64: 185167 | J64: 0 | K64: 126.97 | L64: 15648 | N64: 0 | P64: 0 | Q64: 6449.48 | R64: 740264 | S64: 12000.69 | T64: 1370707
C65: その他 | E65: 57.4 | F65: 0 | G65: 67.19 | H65: 0 | J65: 0 | K65: 0.78 | L65: 0 | N65: 0 | P65: 0 | Q65: 143.34 | R65: 0 | S65: 268.71 | T65: 0
B66: 山ノ内町 | C66: 総 数 | E66: 11996.94 | F66: 2283789 | G66: 4016.71 | H66: 612063 | I66: 0 | J66: 0 | K66: 1491.61 | L66: 210364 | M66: 0 | N66: 0 | O66: 0 | P66: 0 | Q66: 16352.76 | R66: 3013325 | S66: =SUM(S67,S70) -> 33858.02 | T66: =SUM(T67,T70) -> 6119541
C67: 立木地 | D67: 総 数 | E67: 11825.61 | F67: 2283789 | G67: 3880.28 | H67: 611928 | I67: 0 | J67: 0 | K67: 1391.41 | L67: 205900 | M67: 0 | N67: 0 | O67: 0 | P67: 0 | Q67: 16040.67 | R67: 3013190 | S67: =SUM(S68:S69) -> 33137.97 | T67: =SUM(T68:T69) -> 6114807
D68: 人工林 | E68: 2748.83 | F68: 1333816 | G68: 475.1 | H68: 207445 | J68: 0 | K68: 97.37 | L68: 32944 | N68: 0 | P68: 0 | Q68: 3442.97 | R68: 1642648 | S68: =E68+G68+I68+K68+M68+O68+Q68 -> 6764.27 | T68: 3216853
D69: 天然林 | E69: 9076.78 | F69: 949973 | G69: 3405.18 | H69: 404483 | J69: 0 | K69: 1294.04 | L69: 172956 | N69: 0 | P69: 0 | Q69: 12597.7 | R69: 1370542 | S69: 26373.7 | T69: 2897954
C70: その他 | E70: 171.33 | F70: 0 | G70: 136.43 | H70: 135 | J70: 0 | K70: 100.2 | L70: 4464 | N70: 0 | P70: 0 | Q70: 312.09 | R70: 135 | S70: 720.05 | T70: 4734
B71: 木島平村 | C71: 総 数 | E71: 1575.64 | F71: 460436 | G71: 690.35 | H71: 205075 | I71: 0 | J71: 0 | K71: 0 | L71: 0 | M71: 0 | N71: 0 | O71: 0 | P71: 0 | Q71: 1089.53 | R71: 335016 | S71: =SUM(S72,S75) -> 3355.52 | T71: =SUM(T72,T75) -> 1000527
C72: 立木地 | D72: 総 数 | E72: 1557.36 | F72: 460436 | G72: 686.97 | H72: 205075 | I72: 0 | J72: 0 | K72: 0 | L72: 0 | M72: 0 | N72: 0 | O72: 0 | P72: 0 | Q72: 1071.37 | R72: 335016 | S72: =SUM(S73:S74) -> 3315.7 | T72: =SUM(T73:T74) -> 1000527
D73: 人工林 | E73: 928.15 | F73: 387842 | G73: 389.92 | H73: 169373 | J73: 0 | L73: 0 | N73: 0 | P73: 0 | Q73: 702.58 | R73: 292560 | S73: =E73+G73+I73+K73+M73+O73+Q73 -> 2020.65 | T73: 849775
D74: 天然林 | E74: 629.21 | F74: 72594 | G74: 297.05 | H74: 35702 | J74: 0 | L74: 0 | N74: 0 | P74: 0 | Q74: 368.79 | R74: 42456 | S74: 1295.05 | T74: 150752
C75: その他 | E75: 18.28 | F75: 0 | G75: 3.38 | H75: 0 | J75: 0 | L75: 0 | N75: 0 | P75: 0 | Q75: 18.16 | R75: 0 | S75: 39.82 | T75: 0
B76: 野沢温泉村 | C76: 総 数 | E76: 2064.71 | F76: 548037 | G76: 777.19 | H76: 202950 | I76: 0 | J76: 0 | K76: 111.43 | L76: 16317 | M76: 0 | N76: 0 | O76: 0 | P76: 0 | Q76: 3071.83 | R76: 807748 | S76: =SUM(S77,S80) -> 6025.16 | T76: =SUM(T77,T80) -> 1575052
C77: 立木地 | D77: 総 数 | E77: 2048.07 | F77: 548037 | G77: 771.43 | H77: 202950 | I77: 0 | J77: 0 | K77: 109.41 | L77: 16317 | M77: 0 | N77: 0 | O77: 0 | P77: 0 | Q77: 3049.15 | R77: 807748 | S77: =SUM(S78:S79) -> 5978.06 | T77: =SUM(T78:T79) -> 1575052
D78: 人工林 | E78: 844.33 | F78: 404768 | G78: 370.47 | H78: 157436 | J78: 0 | K78: 5.2 | L78: 2062 | N78: 0 | P78: 0 | Q78: 1297.82 | R78: 602490 | S78: =E78+G78+I78+K78+M78+O78+Q78 -> 2517.82 | T78: 1166756
D79: 天然林 | E79: 1203.74 | F79: 143269 | G79: 400.96 | H79: 45514 | J79: 0 | K79: 104.21 | L79: 14255 | N79: 0 | P79: 0 | Q79: 1751.33 | R79: 205258 | S79: 3460.24 | T79: 408296
C80: その他 | E80: 16.64 | F80: 0 | G80: 5.76 | H80: 0 | J80: 0 | K80: 2.02 | L80: 0 | N80: 0 | P80: 0 | Q80: 22.68 | R80: 0 | S80: 47.1 | T80: 0
B81: 栄村 | C81: 総 数 | E81: 6972.93 | F81: 1644893 | G81: 3999.51 | H81: 642205 | I81: 0 | J81: 0 | K81: 0 | L81: 0 | M81: 0 | N81: 0 | O81: 0 | P81: 0 | Q81: 11174.69 | R81: 2342327 | S81: =SUM(S82,S85) -> 22147.13 | T81: =SUM(T82,T85) -> 4629425
C82: 立木地 | D82: 総 数 | E82: 6914.3 | F82: 1644893 | G82: 3780.44 | H82: 642205 | I82: 0 | J82: 0 | K82: 0 | L82: 0 | M82: 0 | N82: 0 | O82: 0 | P82: 0 | Q82: 10891.8 | R82: 2342327 | S82: =SUM(S83:S84) -> 21586.54 | T82: =SUM(T83:T84) -> 4629425
D83: 人工林 | E83: 2761.01 | F83: 1190530 | G83: 833.13 | H83: 339701 | J83: 0 | L83: 0 | N83: 0 | P83: 0 | Q83: 3677.91 | R83: 1570964 | S83: =E83+G83+I83+K83+M83+O83+Q83 -> 7272.05 | T83: 3101195
D84: 天然林 | E84: 4153.29 | F84: 454363 | G84: 2947.31 | H84: 302504 | J84: 0 | L84: 0 | N84: 0 | P84: 0 | Q84: 7213.89 | R84: 771363 | S84: 14314.49 | T84: 1528230
C85: その他 | E85: 58.63 | F85: 0 | G85: 219.07 | H85: 0 | J85: 0 | L85: 0 | N85: 0 | P85: 0 | Q85: 282.89 | R85: 0 | S85: 560.59 | T85: 0
B86: 北信計 | C86: 総 数 | E86: 29662 | F86: 6520174 | G86: 12944.86 | H86: 2496001 | I86: 0 | J86: 0 | K86: 1999.71 | L86: 309577 | M86: 0 | N86: 0 | O86: 0 | P86: 0 | Q86: 45694.16 | R86: 9864356 | S86: =SUM(S87,S90) -> 90300.73 | T86: =SUM(T87,T90) -> 19190108
C87: 立木地 | D87: 総 数 | E87: 29329.47 | F87: 6520174 | G87: 12498.7 | H87: 2495866 | I87: 0 | J87: 0 | K87: 1879.17 | L87: 305113 | M87: 0 | N87: 0 | O87: 0 | P87: 0 | Q87: 44860.19 | R87: 9864221 | S87: =SUM(S88:S89) -> 88567.53 | T87: =SUM(T88:T89) -> 19185374
D88: 人工林 | E88: 9686.88 | F88: 4373078 | G88: 3400.82 | H88: 1476286 | I88: 0 | J88: 0 | K88: 231.29 | L88: 88300 | M88: 0 | N88: 0 | O88: 0 | P88: 0 | Q88: 14503.67 | R88: 6501412 | S88: =E88+G88+I88+K88+M88+O88+Q88 -> 27822.66 | T88: 12439076
D89: 天然林 | E89: 19642.59 | F89: 2147096 | G89: 9097.88 | H89: 1019580 | I89: 0 | J89: 0 | K89: 1647.88 | L89: 216813 | M89: 0 | N89: 0 | O89: 0 | P89: 0 | Q89: 30356.52 | R89: 3362809 | S89: 60744.87 | T89: 6746298
C90: その他 | E90: 332.53 | F90: 0 | G90: 446.16 | H90: 135 | I90: 0 | J90: 0 | K90: 120.54 | L90: 4464 | M90: 0 | N90: 0 | O90: 0 | P90: 0 | Q90: 833.97 | R90: 135 | S90: 1733.2 | T90: 4734
A91: 計画区計 | C91: 総 数 | E91: 88142.48 | F91: 20113490 | G91: 30633.96 | H91: 6715073 | I91: 70.71 | J91: 14411 | K91: 3976.95 | L91: 699157 | M91: 255.69 | N91: 63652 | O91: 0 | P91: 0 | Q91: 68291.52 | R91: 16110420 | S91: =SUM(S92,S95) -> 191371.31 | T91: =SUM(T92,T95) -> 43716203
C92: 立木地 | D92: 総 数 | E92: 85502.36 | F92: 20113102 | G92: 29483.41 | H92: 6712681 | I92: 69.83 | J92: 14411 | K92: 3700.96 | L92: 694693 | M92: 248.89 | N92: 63652 | O92: 0 | P92: 0 | Q92: 67021.52 | R92: 16107741 | S92: =SUM(S93:S94) -> 186026.97 | T92: =SUM(T93:T94) -> 43706280
D93: 人工林 | E93: 36160.53 | F93: 14228910 | G93: 11119.02 | H93: 4510005 | I93: 21.97 | J93: 9005 | K93: 1000.3 | L93: 356135 | M93: 192.15 | N93: 56696 | O93: 0 | P93: 0 | Q93: 29342.43 | R93: 11820803 | S93: =E93+G93+I93+K93+M93+O93+Q93 -> 77836.4 | T93: 30981554
D94: 天然林 | E94: 49341.83 | F94: 5884192 | G94: 18364.39 | H94: 2202676 | I94: 47.86 | J94: 5406 | K94: 2700.66 | L94: 338558 | M94: 56.74 | N94: 6956 | O94: 0 | P94: 0 | Q94: 37679.09 | R94: 4286938 | S94: 108190.57 | T94: 12724726
C95: その他 | E95: 2640.12 | F95: 388 | G95: 1150.55 | H95: 2392 | I95: 0.88 | J95: 0 | K95: 275.99 | L95: 4464 | M95: 6.8 | N95: 0 | O95: 0 | P95: 0 | Q95: 1270 | R95: 2679 | S95: 5344.34 | T95: 9923
Q96: =Q91+O91+M91+K91+I91+G91+E91 -> 191371.31 | R96: =R91+P91+N91+L91+J91+H91+F91 -> 43716203

Sheet 県計_値
A1: 第10-1表 市町村別・公益的機能別施業森林等区分別ゾーニング別・資源表
R2: （単位 面積：ha 蓄積：m3）
C3: 区 分 | E3: 公益的機能別施業森林等区分別
E4: 水かん | G4: 山災/土壌 | I4: 快適環境 | K4: 保健 | M4: 文化 | O4: 独自 | Q4: 木材 | S4: 総数
E5: 面積 | F5: 蓄積 | G5: 面積 | H5: 蓄積 | I5: 面積 | J5: 蓄積 | K5: 面積 | L5: 蓄積 | M5: 面積 | N5: 蓄積 | O5: 面積 | P5: 蓄積 | Q5: 面積 | R5: 蓄積 | S5: 面積 | T5: 蓄積
A6: 県計 | C6: 総 数 | E6: 412375.5 | F6: 86274876 | G6: 181928.85 | H6: 36032838 | I6: 12181.51 | J6: 2545243 | K6: 19768.46 | L6: 3524098 | M6: 1344.94 | N6: 253538 | O6: 45.95 | P6: 8277 | Q6: 368413.91 | R6: 80624061 | S6: 996059.12 | T6: 209262931
C7: 立木地 | D7: 総 数 | E7: 401433.51 | F7: 86193988 | G7: 175426.2 | H7: 36012185 | I7: 11787.3 | J7: 2545243 | K7: 18210.06 | L7: 3495163 | M7: 1276.39 | N7: 253498 | O7: 45.72 | P7: 8277 | Q7: 361070.63 | R7: 80552595 | S7: 969249.81 | T7: 209060949
D8: 人工林 | E8: 206167.27 | F8: 60855751 | G8: 84568.97 | H8: 23871699 | I8: 6233.98 | J8: 1750727 | K8: 7036.11 | L8: 2004732 | M8: 545.94 | N8: 160343 | O8: 10.05 | P8: 2974 | Q8: 198554.45 | R8: 58923119 | S8: 503116.77 | T8: 147569345
D9: 天然林 | E9: 195266.24 | F9: 25338237 | G9: 90857.23 | H9: 12140486 | I9: 5553.32 | J9: 794516 | K9: 11173.95 | L9: 1490431 | M9: 730.45 | N9: 93155 | O9: 35.67 | P9: 5303 | Q9: 162516.18 | R9: 21629476 | S9: 466133.04 | T9: 61491604
C10: その他 | E10: 10941.99 | F10: 80888 | G10: 6502.65 | H10: 20653 | I10: 394.21 | J10: 0 | K10: 1558.4 | L10: 28935 | M10: 68.55 | N10: 40 | O10: 0.23 | P10: 0 | Q10: 7343.28 | R10: 71466 | S10: 26809.31 | T10: 201982
A12: ※表中の「その他」とは、立木地以外の森林（無立木地・竹林・更新困難地）のことを示す。
A13: ※表中の「区分」とは、市町村森林整備計画において森林の機能等の別にゾーニングした区分を示す。
A14: ※表中の区分「水かん」とは、「水源の涵養の機能の維持増進を図るための森林施業を推進すべき森林」のことを示す。
A15: ※表中の区分「山災/土壌」とは、「土地に関する災害の防止及び土壌の保全の機能の維持増進を図るための森林施業を推進すべき森林」のことを示す。
A16: ※表中の区分「快適環境」とは、「快適な環境の形成の機能の維持増進を図るための森林施業を推進すべき森林」のことを示す。
A17: ※表中の区分「保健」とは、「保健文化機能の維持増進を図るための森林施業を推進すべき森林」の内「保健・レクリエーション機能の維持増進を図る森林」のことを示す。
A18: ※表中の区分「文化」とは、「保健文化機能の維持増進を図るための森林施業を推進すべき森林」の内「文化機能の維持増進を図る森林」のことを示す。
A19: ※表中の区分「木材」とは、「木材の生産機能の維持増進を図るための森林施業を推進すべき森林」のことを示す。
A20: ※表中の区分「独自」とは、市町村が独自にゾーニングした森林のことを示す。
A21: ※表中の区分「総数」の面積及び蓄積は、ゾーニングが重複している箇所があるため他表と一致しない。
